Cogmind - Beta 13 X2 @@@ ROGUE MODE // 2024.01.14 @ 23:13:15 Player: cptwinky Result: Escaped! Performance ------------- Evolutions (9) 4500 Regions Visited (30) 6000 Robots Destroyed (458) 2290 Value Destroyed (27266) 27266 Prototype IDs (58) 1160 Alien Tech Used (0) 0 Bonus (24530) 24530 TOTAL SCORE: 65746 Bonus ------- High Alert Combat Kills 5635 Follower Combat Kills 7803 Entered Garrisons 2200 Used RIF Installer 6000 Entered DSFs 500 Aligned with FarCom 300 Win 3000 Friendly Fire -908 Cogmind --------- Core Integrity 329/1600 Matter 243/300 Energy 99/100 System Corruption 28% Temperature Cool (2) Movement Hovering (70) Location To Epsilon Eridani Parts ------- > --- POWER (3) -------- (None) > --- PROPULSION (6) --- Myomer Leg Improved Antigrav System > --- UTILITY (13) ----- Advanced Heat Sink Advanced Targeting Computer Improved Hacking Suite Relay Coupler [Proto] (10) > --- WEAPON (3) ------- (None) > --- INVENTORY (5) ---- Relay Coupler [Heavy] (15) Linear Accelerator Linear Accelerator Advanced Datajack Advanced Remote Datajack Peak State ------------ > --- POWER ------------ Micro Antimatter Reactor Quantum Reactor Quantum Reactor > --- PROPULSION ------- Advanced Medium Treads Advanced Medium Treads Improved Heavy Treads Advanced Heavy Siege Treads > --- UTILITY ---------- Advanced Cooling System Huge Storage Unit Advanced Targeting Computer Advanced Targeting Computer Improved Cloaking Device Centrium Light Armor Plating Graphene Brace Improved Hacking Suite Relay Coupler [Sentry] Relay Coupler [Proto] Relay Coupler [Proto] Relay Coupler [Proto] Relay Coupler [Proto] > --- WEAPON ----------- Enhanced Nova Cannon Compact Linear Accelerator Compact Linear Accelerator > --- INVENTORY -------- High-capacity Storage Unit Energy Well High-capacity Matter Pod Advanced Trap Scanner Experimental Reaction Control System Heavy Armor Plating Layered Light Armor Plating Advanced Force Field Relay Coupler [Heavy] Advanced Component Analysis Suite Advanced Trap Extractor Trap Reconfigurator Enhanced Quantum Rifle Enhanced Nova Cannon Linear Accelerator Linear Accelerator Linear Accelerator Advanced Datajack Advanced Remote Datajack Advanced Remote Datajack Advanced Remote Datajack Field Lobotomy Kit [Rating: 197] Favorites ----------- Power Light Quantum Reactor Engine Heavy Ion Engine Power Core Enhanced Fission Core Reactor Light Quantum Reactor Propulsion Improved Heavy Treads Treads Improved Heavy Treads Leg Myomer Leg Wheel Armored Wheel Hover Unit Improved Antigrav System Utility Huge Storage Unit Device Improved Heat Sink Storage Huge Storage Unit Processor Advanced Targeting Computer Hackware Relay Coupler [Sentry] Protection Hardened Light Armor Plating Weapon Particle Cannon Energy Gun Particle Gun Energy Cannon Particle Cannon Ballistic Gun Light Assault Rifle Ballistic Cannon Enhanced Gauss Cannon Launcher Grenade Launcher Special Weapon Advanced Remote Datajack Impact Weapon Powered Hammer Special Melee Weapon Datajack Build | -11 -10 -10 -10 -9 -8 -8 -8 -8 -7 -7 -6 -6 -6 -6 -5 -5 -5 -5 -4 -4 -4 -4 -3 -3 -2 -2 -2 -2 -1 -1 ------- Run | Yrd Mat Min Exi Min Mat Gar Mat Gar Fac Gar Fac Gar Fac Gar Fac Gar Fac Gar Fac Gar Fac DSF Res Gar Res Gar Res Gar Acc Com Slots Evolved 18 | . . . . . 4 . . . 2 . 2 . . . 2 . . . 2 . . . 2 . 2 . . . 2 . Power 2 | . . . . . . . . . . . 1 . . . . . . . . . . . 1 . . . . . . . Propulsion 4 | . . . . . 1 . . . 1 . . . . . . . . . 2 . . . . . . . . . . . Utility 11 | . . . . . 3 . . . 1 . 1 . . . 1 . . . . . . . 1 . 2 . . . 2 . Weapon 1 | . . . . . . . . . . . . . . . 1 . . . . . . . . . . . . . . . Parts Attached 568 | 2 9 9 . 2 35 7 . 5 5 22 13 21 54 19 29 19 32 27 44 9 . 12 30 31 7 30 1 17 36 41 Power 40 | . 1 1 . . 3 . . . . 1 3 1 4 2 1 3 . 2 2 1 . . 1 5 1 2 . 1 3 2 Engine 14 | . 1 1 . . 3 . . . . 1 3 1 3 . . . . 1 . . . . . . . . . . . . Core 7 | . . . . . . . . . . . . . 1 2 1 3 . . . . . . . . . . . . . . Reactor 19 | . . . . . . . . . . . . . . . . . . 1 2 1 . . 1 5 1 2 . 1 3 2 Propulsion 56 | 2 2 1 . . 11 2 . 2 1 3 1 1 3 2 . 2 2 2 3 . . . 1 2 . 4 . 1 3 5 Treads 48 | 2 2 1 . . 11 . . 2 1 3 1 1 3 2 . 2 2 2 3 . . . 1 2 . 2 . 1 1 3 Leg 1 | . . . . . . . . . . . . . . . . . . . . . . . . . . . . . . 1 Wheel 6 | . . . . . . 2 . . . . . . . . . . . . . . . . . . . 2 . . 2 . Hover 1 | . . . . . . . . . . . . . . . . . . . . . . . . . . . . . . 1 Flight . | . . . . . . . . . . . . . . . . . . . . . . . . . . . . . . . Utility 234 | . 3 2 . . 12 2 . . 2 6 2 6 26 8 10 7 19 5 19 3 . 5 17 10 3 19 . 5 23 20 Device 116 | . 2 1 . . 6 1 . . . 1 . 2 14 4 2 3 11 2 8 2 . 4 11 6 1 8 . 2 16 9 Storage 8 | . 1 . . . 2 . . . . . 1 . . . 1 . . . . . . . . . . 1 . . . 2 Processor 10 | . . . . . . . . . . . . . 2 . 1 . 2 . 2 . . . 1 . . 1 . . . 1 Hackware 52 | . . . . . . . . . 1 4 1 3 3 1 3 2 3 2 2 1 . 1 5 2 2 7 . 2 3 4 Protection 48 | . . 1 . . 4 1 . . 1 1 . 1 7 3 3 2 3 1 7 . . . . 2 . 2 . 1 4 4 Artifact . | . . . . . . . . . . . . . . . . . . . . . . . . . . . . . . . Weapon 238 | . 3 5 . 2 9 3 . 3 2 12 7 13 21 7 18 7 11 18 20 5 . 7 11 14 3 5 1 10 7 14 Energy Gun 2 | . 1 . . . . . . . . . . . . . . . . . . . . . . . . . . . 1 . Energy Cannon 71 | . 1 2 . 1 5 2 . 2 1 6 3 5 1 1 3 4 5 9 . . . . 3 6 . 1 1 2 1 6 Ballistic Gun 2 | . . . . . . . . . . . . . 1 . . . . . . . . . . . . 1 . . . . Ballistic Cannon 60 | . 1 1 . . 2 . . . . . . 1 10 4 5 . . 1 9 3 . 5 3 3 1 1 . 5 2 3 Launcher 28 | . . 2 . 1 2 1 . 1 . 3 1 2 2 2 4 2 1 . . 1 . 1 . 1 . . . 1 . . Special Weapon 60 | . . . . . . . . . . . 1 4 7 . 5 1 5 7 7 1 . 1 4 4 2 2 . 1 3 5 Impact Weapon 8 | . . . . . . . . . . . 1 1 . . 1 . . 1 4 . . . . . . . . . . . Slashing Weapon . | . . . . . . . . . . . . . . . . . . . . . . . . . . . . . . . Piercing Weapon . | . . . . . . . . . . . . . . . . . . . . . . . . . . . . . . . Special Melee Weapon 7 | . . . . . . . . . 1 3 1 . . . . . . . . . . . 1 . . . . 1 . . Unidentified Prototypes 15 | . . . . . 1 . . . . . 1 . 6 . . . 2 . 2 . . . . . . . . 1 2 . Parts Lost 72 | . 1 1 . . 1 . . . . 2 1 1 3 . 6 2 3 2 1 . . . 1 2 . 9 . 3 14 19 Power 11 | . 1 1 . . 1 . . . . . . . . . . . . . . . . . . . . 2 . 1 3 2 Propulsion 11 | . . . . . . . . . . . . . . . . 2 . . . . . . . . . 1 . . 2 6 Utility 44 | . . . . . . . . . . 2 . 1 3 . 5 . 3 1 1 . . . 1 2 . 5 . 1 9 10 Weapon 6 | . . . . . . . . . . . 1 . . . 1 . . 1 . . . . . . . 1 . 1 . 1 Highest Loss Streak 10 | . 1 1 . . 1 . . . . 1 1 1 1 . 2 1 2 1 1 . . . 1 1 . 6 . 3 5 10 To Critical Strikes 1 | . . . . . . . . . . . . . . . 1 . . . . . . . . . . . . . . . Average Slot Usage (%) 87 | . 96 99 100 100 99 100 100 100 94 93 84 82 79 77 78 83 86 87 80 78 78 78 75 79 78 82 86 81 81 84 Engine 5 | . 14 13 14 14 9 9 9 9 7 7 13 13 8 6 1 . . 4 1 . . . . . . . . . . . Core 1 | . . . . . . . . . . . . . 3 5 9 11 10 . . . . . . . . . . . . . Reactor 3 | . . . . . . . . . . . . . . . . . . 4 8 10 10 10 9 13 13 12 13 10 8 11 Treads 17 | . 28 28 28 28 27 10 9 13 30 24 13 13 13 12 11 11 13 11 15 15 15 15 14 14 13 11 13 13 9 13 Device 12 | . 11 10 . . 17 18 18 18 15 14 6 5 13 16 10 11 16 18 9 13 15 15 12 3 4 10 8 6 14 14 Storage 6 | . 14 14 14 14 9 9 9 9 7 7 6 6 6 6 5 5 5 5 5 5 5 5 4 4 4 4 4 4 4 3 Processor 2 | . . . . . . . . . . . . . 2 6 5 6 2 . 4 5 5 5 8 9 8 7 8 8 5 6 Hackware 8 | . . . . . . . . . 2 7 18 19 15 . 6 11 8 13 13 6 5 5 5 14 17 20 21 20 16 14 Protection 9 | . . 3 14 14 17 17 18 18 14 15 13 9 6 14 10 4 7 6 5 5 5 5 4 3 4 2 4 4 6 8 Energy Cannon 10 | . 3 15 28 27 17 18 18 18 14 14 12 11 . . 3 16 16 15 1 . . . 2 3 4 6 8 7 3 3 Ballistic Cannon 4 | . 10 11 . . . . . . . . . . 5 5 7 . . . 12 14 15 15 11 9 6 2 . 3 7 7 Naked Turns . | . . . . . . . . . . . . . . . . . . . . . . . . . . . . . . . Heaviest Build 194 | 12 31 36 36 36 110 108 108 110 110 110 125 126 146 147 156 167 170 155 166 176 175 182 184 185 185 189 166 173 173 194 Greatest Support 225 | 40 40 40 40 40 60 60 24 66 89 150 150 150 150 150 150 150 150 150 225 220 220 220 220 225 225 225 225 225 210 215 Greatest Overweight (x) 8 | . . . . . 1 4 4 4 1 2 . . . . 1 1 1 1 . . . . . . . 6 . . 8 7 Average Overweight (x) . | . . . . . . 3 4 3 1 . . . . . . . 1 . . . . . . . . 1 . . 1 . Largest Inventory Capacity 25 | 8 15 15 15 15 25 25 25 25 25 25 25 25 25 25 25 25 25 25 25 25 25 25 25 25 25 25 25 25 25 25 Average Capacity 22 | 8 10 15 15 15 18 25 25 25 25 25 25 25 25 25 25 25 25 25 25 25 25 25 25 25 25 25 25 25 25 23 Most Carried 25 | 7 15 15 15 15 25 25 25 25 25 25 25 25 25 25 25 25 25 25 25 25 25 25 25 25 25 25 25 25 25 25 Average Carried 22 | 7 9 14 14 14 17 24 25 24 24 24 24 24 24 23 24 24 24 24 24 24 25 24 24 24 24 24 25 24 22 21 Final Capacity 25 | 8 15 15 15 15 25 25 25 25 25 25 25 25 25 25 25 25 25 25 25 25 25 25 25 25 25 25 25 25 25 5 Final Carried 25 | 7 14 15 15 15 25 25 25 25 25 25 25 25 24 25 24 25 22 24 25 25 25 25 23 25 25 25 25 25 24 5 Class Distribution -------------------- 21% | Mutant 19% | Botlord-Tank 16% | Botlord-Gunner 15% | Bothacker-Mutant 12% | Botlord-Mutant 7% | Scavenger-Mutant 3% | Bothacker-Tank Dominant Class ---------------- Mutant | -10/Materials Mutant | -10/Mines Mutant | -10/Exiles Mutant | -9/Mines Mutant | -8/Materials Mutant | -8/Garrison Bothacker-Mutant | -8/Materials Bothacker-Mutant | -8/Garrison Botlord-Mutant | -7/Factory Botlord-Mutant | -7/Garrison Bothacker-Mutant | -6/Factory Bothacker-Mutant | -6/Garrison Bothacker-Mutant | -6/Factory Bothacker-Mutant | -6/Garrison Botlord-Tank | -5/Factory Botlord-Gunner | -5/Garrison Botlord-Tank | -5/Factory Botlord-Tank | -5/Garrison Botlord-Tank | -4/Factory Botlord-Tank | -4/Garrison Botlord-Tank | -4/Factory Botlord-Tank | -4/DSF Botlord-Tank | -3/Research Botlord-Gunner | -3/Garrison Botlord-Gunner | -2/Research Botlord-Mutant | -2/Garrison Botlord-Gunner | -2/Research Botlord-Gunner | -2/Garrison Botlord-Tank | -1/Access Botlord-Tank | -1/Command Resources | -11 -10 -10 -10 -9 -8 -8 -8 -8 -7 -7 -6 -6 -6 -6 -5 -5 -5 -5 -4 -4 -4 -4 -3 -3 -2 -2 -2 -2 -1 -1 ----------- Run | Yrd Mat Min Exi Min Mat Gar Mat Gar Fac Gar Fac Gar Fac Gar Fac Gar Fac Gar Fac Gar Fac DSF Res Gar Res Gar Res Gar Acc Com Matter Collected 16413 | 220 609 182 . 30 448 71 . 58 27 443 163 283 1766 1069 705 330 437 533 1661 565 . 255 977 868 83 1036 . 552 1120 1922 Remotely . | . . . . . . . . . . . . . . . . . . . . . . . . . . . . . . . Salvage Created 21607 | . 525 337 . 50 1448 438 19 386 . 973 317 475 1982 884 1097 424 2029 1308 1069 306 . 221 1019 892 78 1715 . 1066 1146 1403 Parts 860 | . 33 19 . 4 55 29 2 26 . 48 16 20 96 37 36 18 59 44 36 15 . 10 37 37 1 50 . 28 37 67 Haulers Intercepted 16 | . 2 . . . 5 . . . . . . . 5 . 2 . 2 . . . . . . . . . . . . . Recyclers Shooed 23 | . 3 . . . . . . . . . . . 6 . . . 6 . 6 . . . 1 . . . . . 1 . Parts Field Recycled . | . . . . . . . . . . . . . . . . . . . . . . . . . . . . . . . Retrieved Matter . | . . . . . . . . . . . . . . . . . . . . . . . . . . . . . . . Parts Self-Destructed . | . . . . . . . . . . . . . . . . . . . . . . . . . . . . . . . Prevented . | . . . . . . . . . . . . . . . . . . . . . . . . . . . . . . . Kills | -11 -10 -10 -10 -9 -8 -8 -8 -8 -7 -7 -6 -6 -6 -6 -5 -5 -5 -5 -4 -4 -4 -4 -3 -3 -2 -2 -2 -2 -1 -1 ------- Run | Yrd Mat Min Exi Min Mat Gar Mat Gar Fac Gar Fac Gar Fac Gar Fac Gar Fac Gar Fac Gar Fac DSF Res Gar Res Gar Res Gar Acc Com Combat Hostiles Destroyed 386 | . 15 12 . 3 17 11 . 11 . 19 6 13 39 17 22 13 25 13 20 11 . 8 13 20 1 16 . 18 18 25 Melee 3 | . . . . . . . . . . . 1 . . . 1 . . . 1 . . . . . . . . . . . Guns 8 | . 8 . . . . . . . . . . . . . . . . . . . . . . . . . . . . . Cannons 255 | . 7 9 . 1 14 6 . 6 . 5 2 8 22 11 9 4 22 10 17 7 . 3 12 14 . 15 . 11 15 25 AOE 98 | . . 3 . 2 3 4 . 4 . 14 3 4 17 6 11 8 1 . . 4 . 5 . 5 . . . 4 . . Classes Destroyed 19 | . 4 . . 1 5 . . 2 . . 1 1 3 1 . . . . . . . 1 . . . . . . . . Worker 10 | . . . . . 1 . . . . . . . 3 . 2 . 2 . . . . . . . . . . . 1 1 Builder 5 | . . . . . . . . . . . . . 2 . . . . . . . . . . . . . . . 3 . Tunneler 3 | . . . . 1 . . . . . . . . . . 1 . . . 1 . . . . . . . . . . . Hauler 16 | . 2 . . . 5 . . . . . . . 5 . 2 . 2 . . . . . . . . . . . . . Recycler 18 | . . . . . 5 . . . . . 1 . 3 . 1 . 2 . 3 . . . 3 . . . . . . . Operator 8 | . 1 . . . 1 . 1 . . . . . 3 . 1 . 1 . . . . . . . . . . . . . Watcher 10 | . . . . . 4 . . . . . . . 1 . 1 . . . . . . . . 2 . . . 1 1 . Swarmer 65 | . 3 3 . 2 . 4 . 2 . 9 3 4 6 6 4 4 . 2 . 6 . 5 . . . 1 . 1 . . Cutter 12 | . . . . . . . . 3 . . . . . 4 . 1 . . . . . . . 4 . . . . . . Grunt 153 | . 12 9 . 1 10 3 . 3 . 9 1 5 15 2 9 6 11 4 6 4 . . 3 8 . 8 . 12 5 7 Brawler 9 | . . . . . . . . . . . . 1 1 . 3 1 2 . 1 . . . . . . . . . . . Duelist 9 | . . . . . . . . . . . . . 1 . 1 . 2 . . . . . . 2 . . . 3 . . Protector 3 | . . . . . . . . . . . . . 1 . 1 . 1 . . . . . . . . . . . . . Sentry 31 | . . . . . 6 4 . 2 . . . 2 . 3 1 . 2 3 3 1 . . 1 1 1 . . 1 . . Specialist 6 | . . . . . . . . . . . . . 4 . . . . . . . . . . . . . . . 2 . Hunter 43 | . . . . . 1 . . . . 1 . 1 5 . 1 1 4 1 4 . . 2 . 4 . 4 . . 6 8 Programmer 51 | . . . . . . . . 1 . . 1 . 6 1 2 . 3 3 7 . . . 9 1 . 2 . . 5 10 Heavy 1 | . . . . . . . . . . . . . . . . . . . . . . 1 . . . . . . . . Behemoth 3 | . . . . . . . . . . . . . . 1 . . . . . . . . . . . 1 . 1 . . Thug 1 | . . . . . . . . . . . . . 1 . . . . . . . . . . . . . . . . . Infiltrator 1 | . . . . . . . . . . . 1 . . . . . . . . . . . . . . . . . . . Best Kill Streak 12 | . 5 4 . 2 3 4 1 7 . 10 3 4 8 5 9 5 8 3 3 6 . 5 3 7 1 7 . 7 12 4 Combat Bots Only 10 | . 4 4 . 2 3 4 . 7 . 10 3 4 8 5 8 5 5 3 3 6 . 5 3 7 1 7 . 7 9 4 Max Kills in Single Turn 5 | . 1 1 . 2 1 4 1 4 . 3 3 2 5 3 3 4 2 1 1 2 . 5 1 3 1 1 . 2 2 1 Gunslinging . | . . . . . . . . . . . . . . . . . . . . . . . . . . . . . . . Exploded 5 | . . 1 . 2 1 4 . 4 . 3 3 2 5 3 2 4 1 . . 2 . 5 . 3 . . . 2 . . Melee 1 | . . . . . . . . . . . 1 . . . 1 . . . 1 . . . . . . . . . . . Uniques/NPCs Destroyed . | . . . . . . . . . . . . . . . . . . . . . . . . . . . . . . . Combat | -11 -10 -10 -10 -9 -8 -8 -8 -8 -7 -7 -6 -6 -6 -6 -5 -5 -5 -5 -4 -4 -4 -4 -3 -3 -2 -2 -2 -2 -1 -1 -------- Run | Yrd Mat Min Exi Min Mat Gar Mat Gar Fac Gar Fac Gar Fac Gar Fac Gar Fac Gar Fac Gar Fac DSF Res Gar Res Gar Res Gar Acc Com Hostile Shots Fired 2347 | . 71 23 . 4 65 18 . 35 1 73 32 96 207 90 99 44 151 66 195 41 . 45 66 81 29 231 . 91 196 297 Missed 699 | . 19 1 . 1 22 5 . 8 . 17 9 37 63 26 22 13 33 15 75 21 . 24 31 20 9 66 . 29 52 81 Damage Taken 30436 | . 581 234 . 26 710 282 . 312 15 796 473 853 2107 657 1710 664 2452 793 2204 302 . 254 797 1287 557 2961 . 1409 3294 4706 Core 2648 | . 63 40 . . 16 41 . 18 . 68 26 75 142 45 40 78 199 43 153 . . . 23 50 49 135 . 73 324 947 Absorbed by Shields 4722 | . . . . . . . . 55 . 113 . 76 712 446 189 85 203 151 . 195 . 166 48 192 . 1007 . 129 . 955 Reduced by Siege Mode 670 | . . . . . . . . . . . . . 22 . 25 8 16 35 135 . . 50 56 43 . 113 . 25 36 106 Redirected to Shielding 321 | . . . . . . . . . . . . . . 11 101 . . . . . . . . . . . . . 122 87 Ignored by Resistances 279 | . . . . . . . . . . . . . . 23 138 . 71 29 18 . . . . . . . . . . . Regen/Repaired (Parts) 2018 | . 103 . . . 169 . . . 136 168 277 . . . . . 239 . 663 114 . 101 29 . 19 . . . . . Core Remaining (%) 74 | 100 . . . 58 . . . 86 . 90 . . . 66 . . . 64 . . . 86 . 94 . . . 82 . 20 Volleys Fired 1337 | . 64 21 . 2 79 27 1 27 . 55 10 41 103 118 51 31 86 71 72 24 . 10 39 62 19 71 4 43 51 155 Largest 3 | . 2 2 . 2 2 2 2 2 . 2 2 2 1 1 3 3 3 3 3 3 . 3 3 3 2 3 1 3 3 3 Hottest 305 | . 100 103 . 136 136 136 136 136 . 128 128 125 85 85 265 265 265 265 199 171 . 187 243 250 185 305 120 305 260 260 Shots Fired 2373 | . 125 39 . 3 146 46 2 48 . 92 15 62 103 116 65 59 212 151 163 49 . 26 83 117 25 148 4 87 125 262 Gun 97 | . 93 . . . . . . . . . . . . . . . . . . . . . . . . . . . . 4 Cannon 2044 | . 32 36 . 2 138 45 2 47 . 76 11 44 82 112 47 48 193 136 148 43 . 24 73 109 16 137 4 77 121 241 Launcher 79 | . . 3 . 1 8 1 . 1 . 16 2 3 8 4 9 6 4 . . 2 . 1 . 3 . . . 7 . . Special 153 | . . . . . . . . . . . 2 15 13 . 9 5 15 15 15 4 . 1 10 5 9 11 . 3 4 17 Kinetic 872 | . 96 18 . . 4 . . . . . . . 80 46 20 . . . 143 43 . 24 57 71 6 47 . 19 74 124 Thermal 1269 | . 29 18 . 2 134 45 2 47 . 76 11 44 2 66 27 48 193 136 5 . . . 16 38 10 90 4 58 47 121 Explosive 79 | . . 3 . 1 8 1 . 1 . 16 2 3 8 4 9 6 4 . . 2 . 1 . 3 . . . 7 . . Electromagnetic . | . . . . . . . . . . . . . . . . . . . . . . . . . . . . . . . Robot Hit Streak 58 | . 24 5 . 2 13 8 5 9 . 39 14 12 16 23 45 8 23 58 20 29 . 11 22 35 8 26 . 11 9 11 Robot Miss Streak 5 | . 4 4 . . 3 4 . 3 . 2 2 3 4 1 1 3 3 5 2 3 . 1 2 3 1 4 . 1 3 3 Penetration Max 1 | . . . . . . . . . . . . . 1 . . . . . 1 1 . . . . . . . . . . Secondary Targets 1 | . 1 . . . . . . . . . . . . . . . . . . . . . . . . . . . . . Max Gunslinging Chain 1 | . 1 . . . . . . . . . . . . . . . . . . . . . . . . . . . . . Shots Hit Robots 1588 | . 85 18 . 1 93 23 2 26 1 76 10 40 74 90 65 32 151 113 130 28 . 16 67 78 19 100 . 57 69 124 Core Hits 753 | . 31 17 . 4 44 14 1 10 . 60 9 20 66 39 53 18 63 31 40 15 . 9 22 39 1 37 . 32 29 49 Critical Kills 21 | . . . . . 1 1 . 1 . . . . . . . 1 2 2 . . . . 2 1 1 3 . 3 3 . Critical Parts Destroyed 3 | . . . . . . . . . . . 1 . . . . . . . 2 . . . . . . . . . . . Critical Strikes 103 | . 4 1 . . 1 1 . 1 . . 1 . 14 3 1 1 2 2 22 7 . 1 6 7 1 5 . 3 15 4 Burn 2 | . 2 . . . . . . . . . . . . . . . . . . . . . . . . . . . . . Meltdown 21 | . . . . . 1 1 . 1 . . . . . . . 1 2 2 . . . . 2 1 1 3 . 3 3 . Blast 77 | . 2 1 . . . . . . . . . . 14 3 1 . . . 20 7 . 1 4 6 . 2 . . 12 4 Smash 3 | . . . . . . . . . . . 1 . . . . . . . 2 . . . . . . . . . . . Melee Attacks 28 | . . . . . . . . . 1 5 2 1 . . 9 . . 2 6 . . . 1 . . . . 1 . . Impact 20 | . . . . . . . . . . . 2 1 . . 9 . . 2 6 . . . . . . . . . . . Slashing . | . . . . . . . . . . . . . . . . . . . . . . . . . . . . . . . Piercing . | . . . . . . . . . . . . . . . . . . . . . . . . . . . . . . . Sneak Attacks 10 | . . . . . . . . . 1 1 2 1 . . 2 . . . 2 . . . . . . . . 1 . . Combat Hostiles 4 | . . . . . . . . . . . 1 1 . . 2 . . . . . . . . . . . . . . . Follow-up Attacks . | . . . . . . . . . . . . . . . . . . . . . . . . . . . . . . . Damage Inflicted 68457 | . 1083 719 . 194 3019 719 42 848 . 3645 495 1321 7591 4716 5108 1965 5603 3548 4414 1169 . 947 2435 3374 437 3812 . 3568 3094 4591 Guns 686 | . 626 . . . . . . . . . . . . . . . . . . . . . . . . . . . . 60 Cannons 51438 | . 409 384 . 22 2159 579 42 656 . 1455 153 679 4305 4125 2308 838 4980 3548 3960 975 . 561 2381 2802 437 3812 . 2315 3090 4463 Explosions 14717 | . . 318 . 129 787 140 . 192 . 2190 158 521 3155 590 2441 1127 601 . . 194 . 386 . 535 . . . 1253 . . Melee 1014 | . . . . . . . . . . . 184 102 . . 348 . . . 380 . . . . . . . . . . . Ramming 602 | . 48 17 . 43 73 . . . . . . 19 131 1 11 . 22 . 74 . . . 54 37 . . . . 4 68 Kinetic 24232 | . 802 166 . . . . . . . . . . 4274 2142 1580 . . . 3846 975 . 561 1829 1869 147 1080 . 444 1669 2848 Thermal 29847 | . 233 218 . 22 2159 579 42 656 . 1455 153 679 1474 1983 1240 838 4980 3548 114 . . . 552 933 290 2732 . 1871 1421 1675 Explosive 12762 | . . 318 . 129 787 140 . 192 . 2190 158 521 1712 590 1929 1127 601 . . 194 . 386 . 535 . . . 1253 . . Electromagnetic . | . . . . . . . . . . . . . . . . . . . . . . . . . . . . . . . Impact 1014 | . . . . . . . . . . . 184 102 . . 348 . . . 380 . . . . . . . . . . . Slashing . | . . . . . . . . . . . . . . . . . . . . . . . . . . . . . . . Piercing . | . . . . . . . . . . . . . . . . . . . . . . . . . . . . . . . Highest Corruption 28 | . . . . . . . . 1 . . . . 9 5 4 . 10 13 1 . . . 10 5 . 4 4 4 9 28 Average Corruption 6 | . . . . . . . . 1 . . . . 3 5 2 . 7 11 1 . . . 1 2 . 3 4 4 3 12 Corruption Purged 26 | . . . . . . . . . . . . . 5 . 4 . . . 2 . . . 10 5 . . . . . . Corruption Blocked . | . . . . . . . . . . . . . . . . . . . . . . . . . . . . . . . Effects 400 | . . . . . . . . 8 . . . . 46 35 5 . 42 60 3 . . . 3 6 . 33 2 16 9 132 Message Errors 95 | . . . . . . . . 3 . . . . 12 5 3 . 11 13 1 . . . 1 2 . 6 . 2 5 31 Matter Fused 91 | . . . . . . . . 2 . . . . 12 8 2 . 7 17 1 . . . . 1 . 6 . 5 1 29 Heat Flow Errors 41 | . . . . . . . . . . . . . 6 4 . . 6 6 . . . . . 1 . 4 1 3 1 9 Energy Discharges 48 | . . . . . . . . 2 . . . . 5 7 . . 5 9 . . . . 1 . . 1 1 2 . 15 Parts Rejected 1 | . . . . . . . . . . . . . 1 . . . . . . . . . . . . . . . . . Parts Fused 6 | . . . . . . . . . . . . . 1 1 . . 1 . . . . . . . . . . . 2 1 Data Loss (minor) 54 | . . . . . . . . 1 . . . . 5 3 . . 2 11 1 . . . 1 2 . 6 . 1 . 21 Data Loss (major) 14 | . . . . . . . . . . . . . 2 2 . . . 1 . . . . . . . 3 . 1 . 5 Misfires 17 | . . . . . . . . . . . . . 1 1 . . 4 1 . . . . . . . 1 . 2 . 7 Alerts 8 | . . . . . . . . . . . . . . 1 . . 1 . . . . . . . . 3 . . . 3 Misdirections 2 | . . . . . . . . . . . . . . . . . . 1 . . . . . . . . . . . 1 Weapon Failures 23 | . . . . . . . . . . . . . 1 3 . . 5 1 . . . . . . . 3 . . . 10 Overload Shots . | . . . . . . . . . . . . . . . . . . . . . . . . . . . . . . . Overflow Damage 2884 | . 8 3 . 16 49 . . 11 . 36 68 35 652 293 344 119 63 138 440 36 . . 87 80 . 65 . 113 114 114 Projectiles 1963 | . 8 2 . . 46 . . 11 . . . 3 368 293 295 3 63 138 173 36 . . 86 52 . 65 . 95 114 112 Explosions 516 | . . 1 . 16 3 . . . . 36 . . 254 . 44 116 . . . . . . . 28 . . . 18 . . Melee 405 | . . . . . . . . . . . 68 32 30 . 5 . . . 267 . . . 1 . . . . . . 2 Knockbacks 170 | . 3 2 . 1 . . . . . . 1 . 17 4 5 . . . 32 5 . . 21 13 . 6 . 5 31 24 Impact 7 | . . . . 1 . . . . . . 1 . 2 . 1 . . . 1 . . . 1 . . . . . . . Kinetic 145 | . 3 2 . . . . . . . . . . 15 4 4 . . . 27 5 . . 16 11 . 6 . 4 24 24 Secondary 18 | . . . . . . . . . . . . . . . . . . . 4 . . . 4 2 . . . 1 7 . Self-Inflicted Damage 1244 | . . 25 . . . . . 31 . 34 . . 434 170 84 60 330 . . . . . . 68 . . . . . 8 Shots 29 | . . 1 . . . . . 1 . 1 . . 10 4 3 2 5 . . . . . . 2 . . . . . . Rammed 63 | . 7 5 . 6 9 . . . . . . 2 7 1 2 . 5 . 3 . . . 4 5 . . . . 1 6 Targets Rammed 67 | . 7 5 . 7 9 . . . . . . 2 7 1 2 . 5 . 5 . . . 4 5 . . . . 1 7 Kicked . | . . . . . . . . . . . . . . . . . . . . . . . . . . . . . . . Crushed 4 | . . . . 1 . . . . . . . . . . . . . . 2 . . . . . . . . . . 1 Highest Temperature 559 | . 40 30 . 84 315 176 48 323 . 207 69 294 239 285 84 216 288 317 205 163 . . 288 386 81 424 168 444 419 559 Average Temperature 98 | . 13 14 . 43 89 76 28 141 . 91 29 80 61 99 21 79 103 64 48 70 . . 112 114 35 126 101 143 120 132 Received Heat Transfer 4537 | . 318 66 . . 324 90 . 46 . 304 108 295 276 31 311 201 324 146 268 58 . . 60 172 9 271 . 239 243 377 Effects 44 | . . . . . 1 . . 1 . . . . . . . . . . . . . . 1 1 . 5 . 5 4 26 Shutdowns 14 | . . . . . . . . . . . . . . . . . . . . . . . . 1 . 2 . 4 1 6 Energy Bleed 6 | . . . . . 1 . . 1 . . . . . . . . . . . . . . 1 . . . . 1 . 2 Interference 11 | . . . . . . . . . . . . . . . . . . . . . . . . . . 2 . . 2 7 Matter Decay 2 | . . . . . . . . . . . . . . . . . . . . . . . . . . . . . . 2 Short Circuit 2 | . . . . . . . . . . . . . . . . . . . . . . . . . . . . . . 2 Damage (minor) 2 | . . . . . . . . . . . . . . . . . . . . . . . . . . 1 . . . 1 Damage (major) 5 | . . . . . . . . . . . . . . . . . . . . . . . . . . . . . 1 4 Damage (core) 2 | . . . . . . . . . . . . . . . . . . . . . . . . . . . . . . 2 Siege Activations 47 | . . . . . . . . . . . . . 5 . 2 2 3 7 9 . . 1 2 3 . 4 . 3 2 4 Total Turns 891 | . . . . . . . . . . . . . 35 . 33 33 59 78 266 . . 19 72 60 . 95 . 61 16 64 Longest Duration 101 | . . . . . . . . . . . . . 19 . 17 18 22 18 101 . . 19 65 35 . 30 . 31 10 37 Robots Corrupted . | . . . . . . . . . . . . . . . . . . . . . . . . . . . . . . . Combat Hostiles . | . . . . . . . . . . . . . . . . . . . . . . . . . . . . . . . Parts Fried 10 | . . . . . . . . . . . 2 1 . . 1 . . . 5 . . . . . . . . . 1 . Impact Corruptions 17 | . . . . . . . . . . . 3 1 3 . 2 . . . 5 . . . 2 . . . . . . 1 Robots Melted 24 | . . . . . 1 1 . 1 . . . . . . . 1 4 3 . . . . 2 1 1 3 . 3 3 . Combat Hostiles 18 | . . . . . . 1 . 1 . . . . . . . 1 2 3 . . . . 1 1 1 1 . 3 3 . Parts Melted 75 | . 2 . . . 4 2 . 6 . 3 . 1 1 . 1 2 18 12 . . . . 4 3 1 5 . 7 3 . Heat Transferred 32260 | . 666 370 . 37 3293 962 74 999 . 2442 222 999 937 2405 1027 888 5176 3774 111 . . . 444 775 259 2331 . 1591 1184 1294 Parts Sabotaged 2 | . . . . . . . . . . . . . 2 . . . . . . . . . . . . . . . . . Parts Stolen . | . . . . . . . . . . . . . . . . . . . . . . . . . . . . . . . Parts Stripped . | . . . . . . . . . . . . . . . . . . . . . . . . . . . . . . . Power Chain Reactions . | . . . . . . . . . . . . . . . . . . . . . . . . . . . . . . . Missiles Intercepted . | . . . . . . . . . . . . . . . . . . . . . . . . . . . . . . . Alert | -11 -10 -10 -10 -9 -8 -8 -8 -8 -7 -7 -6 -6 -6 -6 -5 -5 -5 -5 -4 -4 -4 -4 -3 -3 -2 -2 -2 -2 -1 -1 ------- Run | Yrd Mat Min Exi Min Mat Gar Mat Gar Fac Gar Fac Gar Fac Gar Fac Gar Fac Gar Fac Gar Fac DSF Res Gar Res Gar Res Gar Acc Com Peak Influence 1975 | . 281 160 . 116 250 816 403 762 515 1975 1508 1614 1069 1771 1219 1567 937 1002 514 781 412 466 361 931 637 789 452 801 750 1026 Initial 1036 | . . 10 . . . 64 397 261 399 220 1036 968 847 748 924 463 822 489 492 180 409 288 261 145 523 444 443 339 480 475 Average 532 | . 134 53 . 19 51 470 403 601 366 1068 1217 1270 601 1171 877 1056 616 733 210 465 409 357 248 611 583 601 444 579 625 560 Maximum Alert Level 5 | . 1 . . . 1 3 2 3 2 5 4 5 3 5 4 4 3 3 2 3 2 2 1 3 2 3 2 3 3 3 Low Security (%) 28 | 100 69 100 . 100 98 18 . . . . . . 7 . . . . . 59 5 . . 25 4 . . . . . 3 Level 1 15 | . 30 . . . 1 26 . 15 76 9 . . 28 . . . 3 . 22 36 . 76 74 21 . . . 26 . 32 Level 2 21 | . . . . . . 20 100 58 23 10 . . 25 . 14 21 60 48 18 41 100 23 . 28 100 76 100 42 61 25 Level 3 23 | . . . . . . 34 . 26 . 32 18 32 37 39 80 34 35 51 . 15 . . . 45 . 23 . 30 38 38 Level 4 9 | . . . . . . . . . . 32 81 60 . 49 4 44 . . . . . . . . . . . . . . Level 5 1 | . . . . . . . . . . 15 . 7 . 10 . . . . . . . . . . . . . . . . High Security . | . . . . . . . . . . . . . . . . . . . . . . . . . . . . . . . Max Security . | . . . . . . . . . . . . . . . . . . . . . . . . . . . . . . . Sterilizations 1 | . . . . . . . . . . . . . . . . . . . . . . 1 . . . . . . . . Squads Dispatched 89 | . 4 2 . 2 6 . 1 . . . 7 . 14 . 5 . 11 . 9 . . 2 3 . 3 . 1 . 5 14 Investigation 24 | . 2 1 . 1 2 . 1 . . . 3 . 3 . 1 . . . 2 . . . 1 . 2 . 1 . 1 3 Extermination 23 | . . . . . . . . . . . 1 . 4 . 1 . 2 . 4 . . . 2 . . . . . 1 8 Reinforcement 21 | . 2 . . 1 1 . . . . . 1 . 5 . 1 . 3 . 3 . . 2 . . . . . . 2 . Assault 14 | . . 1 . . . . . . . . 2 . 2 . 2 . 3 . . . . . . . . . . . 1 3 Garrison 7 | . . . . . 3 . . . . . . . . . . . 3 . . . . . . . 1 . . . . . Intercept . | . . . . . . . . . . . . . . . . . . . . . . . . . . . . . . . Searches Triggered . | . . . . . . . . . . . . . . . . . . . . . . . . . . . . . . . Construction Impeded 3 | . . . . 1 . . . . . . 1 . . . . . . . . . . . . . . . . . 1 . Haulers Reinforced 2 | . . . . . . . . . . . . . 1 . . . 1 . . . . . . . . . . . . . Active Scanning Responses . | . . . . . . . . . . . . . . . . . . . . . . . . . . . . . . . Cargo Convoy Interrupts 1 | . . . . . . . . . . . . . 1 . . . . . . . . . . . . . . . . . Stealth | -11 -10 -10 -10 -9 -8 -8 -8 -8 -7 -7 -6 -6 -6 -6 -5 -5 -5 -5 -4 -4 -4 -4 -3 -3 -2 -2 -2 -2 -1 -1 --------- Run | Yrd Mat Min Exi Min Mat Gar Mat Gar Fac Gar Fac Gar Fac Gar Fac Gar Fac Gar Fac Gar Fac DSF Res Gar Res Gar Res Gar Acc Com Distress Signals 14 | . 3 . . 1 1 . . . . . . . 1 . . . 3 . 2 . . . 1 . . . . 1 . 1 Communications Jammed 150 | . . . . . . . . . . . 1 . 23 . 15 . 40 4 2 . . . . 63 . . . . 2 . Distress Signals 149 | . . . . . . . . . . . . . 23 . 15 . 40 4 2 . . . . 63 . . . . 2 . Times Spotted 757 | . 24 12 . 5 32 16 . 16 4 39 24 32 72 24 35 27 49 38 36 18 . 12 30 34 10 30 . 36 35 67 Peak Tracking Total 11 | . 6 4 . 3 4 6 . 9 3 6 6 5 11 5 6 5 5 5 4 6 . 5 4 8 4 7 . 11 6 8 Tactical Retreats 24 | . . . . . 1 . . 1 . 1 1 1 1 1 . . . 2 1 2 . . . 1 . 1 . 2 . 8 Traps | -11 -10 -10 -10 -9 -8 -8 -8 -8 -7 -7 -6 -6 -6 -6 -5 -5 -5 -5 -4 -4 -4 -4 -3 -3 -2 -2 -2 -2 -1 -1 ------- Run | Yrd Mat Min Exi Min Mat Gar Mat Gar Fac Gar Fac Gar Fac Gar Fac Gar Fac Gar Fac Gar Fac DSF Res Gar Res Gar Res Gar Acc Com Traps Triggered 60 | . 2 . . . . 3 . 6 . 6 . . 8 5 . 6 . 2 2 3 . 1 3 3 . 3 . 2 . 5 Indirectly . | . . . . . . . . . . . . . . . . . . . . . . . . . . . . . . . Trap Hack Attempts . | . . . . . . . . . . . . . . . . . . . . . . . . . . . . . . . Triggered . | . . . . . . . . . . . . . . . . . . . . . . . . . . . . . . . Disarmed . | . . . . . . . . . . . . . . . . . . . . . . . . . . . . . . . Reprogrammed 10 | . . . . . . . . . . . . . 10 . . . . . . . . . . . . . . . . . Reused 15 | . . . . . . . . . . . . 2 1 . . . . . . . . . 4 . . . . . 1 7 Traps Reconfigurated 32 | . . . . . . . . . . . . . 4 . . 1 . . . . . 5 8 . . . . . 8 6 Traps Extracted 23 | . . . . . . . . . . . . . 6 . . . . . . . . . 4 . . . . . 7 6 Installed 17 | . . . . . . . . . . . . 2 . . . . . . . . . . 4 . . 4 . . . 7 Triggered 16 | . . . . . . . . . . . . 2 1 . . . . . . . . . 4 . . . . . 1 8 Most Traps Carried 10 | . . 2 2 . . 2 2 2 2 2 2 2 6 10 10 10 10 10 10 10 10 10 10 10 4 4 . . 7 7 Machines | -11 -10 -10 -10 -9 -8 -8 -8 -8 -7 -7 -6 -6 -6 -6 -5 -5 -5 -5 -4 -4 -4 -4 -3 -3 -2 -2 -2 -2 -1 -1 ---------- Run | Yrd Mat Min Exi Min Mat Gar Mat Gar Fac Gar Fac Gar Fac Gar Fac Gar Fac Gar Fac Gar Fac DSF Res Gar Res Gar Res Gar Acc Com Machines Disabled 93 | . 1 . . . 3 5 . 2 . 5 10 1 17 5 1 5 7 2 3 3 . . . 6 1 4 . 2 1 9 Max in Single Turn 5 | . 1 . . . 1 1 . 1 . 1 2 1 5 1 1 1 4 1 1 1 . . . 1 . 1 . 1 . 2 Garrison Access 1 | . . . . . . . . . . . . . . . . . . . . . . . . . . . . . 1 . Garrison Relay 24 | . . . . . . 3 . 2 . 4 . 1 . 3 . 1 . 2 . 2 . . . 2 . 3 . 1 . . Phase Generator 1 | . . . . . . 1 . . . . . . . . . . . . . . . . . . . . . . . . Machines Repaired . | . . . . . . . . . . . . . . . . . . . . . . . . . . . . . . . Machines Dismantled . | . . . . . . . . . . . . . . . . . . . . . . . . . . . . . . . Machines Sabotaged . | . . . . . . . . . . . . . . . . . . . . . . . . . . . . . . . Overloaded Fab Kills 5 | . . . . . . . . . . . . . 5 . . . . . . . . . . . . . . . . . Hacking | -11 -10 -10 -10 -9 -8 -8 -8 -8 -7 -7 -6 -6 -6 -6 -5 -5 -5 -5 -4 -4 -4 -4 -3 -3 -2 -2 -2 -2 -1 -1 --------- Run | Yrd Mat Min Exi Min Mat Gar Mat Gar Fac Gar Fac Gar Fac Gar Fac Gar Fac Gar Fac Gar Fac DSF Res Gar Res Gar Res Gar Acc Com Machines Accessed 120 | . 6 1 2 1 15 2 1 1 5 3 5 3 16 2 2 4 4 3 10 1 1 . 6 3 2 . 1 . 9 11 Terminals 78 | . 5 1 . . 10 2 . 1 2 3 1 3 7 2 . 4 3 3 3 1 1 . 4 3 1 . . . 7 11 Fabricators 10 | . . . . . . . . . 1 . 1 . 4 . 1 . . . 1 . . . 1 . . . . . 1 . Repair Stations 7 | . 1 . . . 2 . . . 1 . 1 . . . . . . . 2 . . . . . . . . . . . Recycling Units 7 | . . . . . 2 . . . . . . . 3 . . . . . 2 . . . . . . . . . . . Scanalyzers 3 | . . . . . . . . . . . 1 . 1 . . . . . 1 . . . . . . . . . . . Garrison Access 12 | . . . . . 1 . 1 . 1 . 1 . 1 . 1 . 1 . 1 . . . 1 . 1 . 1 . 1 . Total Hacks 304 | . 16 3 2 1 63 5 4 2 11 8 17 6 41 7 5 5 7 8 20 2 1 . 17 7 5 . 3 . 16 22 Successful 124 | . 10 1 2 1 32 . 1 . 4 3 9 3 17 . 2 3 1 1 10 1 1 . 6 . 1 . 1 . 10 4 Failed 178 | . 5 2 . . 30 5 3 2 7 5 8 3 24 7 3 2 6 7 10 1 . . 11 7 4 . 2 . 6 18 Catastrophic 43 | . . 1 . . 5 2 . 1 3 1 2 1 4 1 3 1 3 1 1 . . . 3 3 1 . 1 . 2 3 Database Lockouts 2 | . 1 . . . 1 . . . . . . . . . . . . . . . . . . . . . . . . . Manual 111 | . 4 3 1 . 36 . 3 . 2 4 11 1 14 . 2 . 6 1 3 . . . 2 . 2 . 2 . 4 10 Terminals 199 | . 12 3 . . 45 5 . 2 2 8 8 6 21 7 . 5 5 8 5 2 1 . 11 7 2 . . . 12 22 Fabricators 23 | . . . . . . . . . 3 . 2 . 8 . 2 . . . 2 . . . 4 . . . . . 2 . Repair Stations 23 | . 4 . . . 9 . . . 4 . 2 . . . . . . . 4 . . . . . . . . . . . Recycling Units 15 | . . . . . 6 . . . . . . . 6 . . . . . 3 . . . . . . . . . . . Scanalyzers 10 | . . . . . . . . . . . 2 . 4 . . . . . 4 . . . . . . . . . . . Garrison Access 31 | . . . . . 3 . 4 . 2 . 3 . 2 . 3 . 2 . 2 . . . 2 . 3 . 3 . 2 . Terminal Hacks 55 | . 7 1 2 1 15 . . . . 3 2 3 8 . . 3 . 1 1 1 1 . . . . . . . 4 2 Record 1 | . . . 1 . . . . . . . . . . . . . . . . . . . . . . . . . . . Robot Analysis 7 | . 2 1 . . 3 . . . . . . . 1 . . . . . . . . . . . . . . . . . Prototype ID Bank 4 | . 1 . . . 3 . . . . . . . . . . . . . . . . . . . . . . . . . Open Door 6 | . . . . 1 . . . . . . . 1 . . . 1 . . . . . . . . . . . . 3 . Open DSF 1 | . . . . . . . . . . . . . . . . . . . . . 1 . . . . . . . . . Emergency Access Points 2 | . . . . . . . . . . 1 . . . . . . . 1 . . . . . . . . . . . . Terminal Index 2 | . . . . . . . . . . . . . . . . . . . 1 . . . . . . . . . 1 . Unreport Threat 10 | . 1 . . . 3 . . . . . 2 . 4 . . . . . . . . . . . . . . . . . Locate Traps 4 | . . . . . 1 . . . . . . . 1 . . . . . . . . . . . . . . . . 2 Reprogram Traps 2 | . . . . . . . . . . . . . 2 . . . . . . . . . . . . . . . . . Hauler Manifests 1 | . 1 . . . . . . . . . . . . . . . . . . . . . . . . . . . . . Zone Layout 7 | . 2 . . . 5 . . . . . . . . . . . . . . . . . . . . . . . . . Garrison Registry 4 | . . . . . . . . . . 1 . 1 . . . 1 . . . 1 . . . . . . . . . . Patrol Navigation 2 | . . . . . . . . . . 1 . . . . . 1 . . . . . . . . . . . . . . Security Stations 1 | . . . . . . . . . . . . 1 . . . . . . . . . . . . . . . . . . Derelict Proto ID Bank 1 | . . . 1 . . . . . . . . . . . . . . . . . . . . . . . . . . . Fabricator Hacks 10 | . . . . . . . . . 1 . . . 2 . 1 . . . . . . . 4 . . . . . 2 . Network Status 2 | . . . . . . . . . 1 . . . . . . . . . . . . . . . . . . . 1 . Load Schematic 4 | . . . . . . . . . . . . . 1 . 1 . . . . . . . 2 . . . . . . . Build 4 | . . . . . . . . . . . . . 1 . . . . . . . . . 2 . . . . . 1 . Repair Station Hacks 14 | . 2 . . . 6 . . . 2 . 2 . . . . . . . 2 . . . . . . . . . . . Scan Component 7 | . 1 . . . 3 . . . 1 . 1 . . . . . . . 1 . . . . . . . . . . . Repair 7 | . 1 . . . 3 . . . 1 . 1 . . . . . . . 1 . . . . . . . . . . . Recycling Unit Hacks 6 | . . . . . 1 . . . . . . . 3 . . . . . 2 . . . . . . . . . . . Process 1 | . . . . . . . . . . . . . . . . . . . 1 . . . . . . . . . . . Retrieve Components 5 | . . . . . 1 . . . . . . . 3 . . . . . 1 . . . . . . . . . . . Scanalyzer 6 | . . . . . . . . . . . 2 . 1 . . . . . 3 . . . . . . . . . . . Insert Component 4 | . . . . . . . . . . . 1 . 1 . . . . . 2 . . . . . . . . . . . Analyze 2 | . . . . . . . . . . . 1 . . . . . . . 1 . . . . . . . . . . . Garrison Access Hacks 13 | . . . . . 1 . 1 . 1 . 1 . 1 . 1 . 1 . 1 . . . 1 . 1 . 1 . 2 . Unlock Access 11 | . . . . . 1 . 1 . 1 . 1 . 1 . 1 . 1 . 1 . . . 1 . 1 . 1 . . . Seal Access 1 | . . . . . . . . . . . . . . . . . . . . . . . . . . . . . 1 . Coupler Status 1 | . . . . . . . . . . . . . . . . . . . . . . . . . . . . . 1 . Unauthorized Hacks 20 | . 1 . . . 9 . . . . . 2 . 2 . . . . . 1 . . . 1 . . . . . 2 2 Terminals 13 | . 1 . . . 5 . . . . . 1 . 1 . . . . . . . . . 1 . . . . . 2 2 Assimilate 1 | . . . . . 1 . . . . . . . . . . . . . . . . . . . . . . . . . Botnet 8 | . . . . . 2 . . . . . 1 . 1 . . . . . . . . . 1 . . . . . 2 1 Disrupt 2 | . 1 . . . 1 . . . . . . . . . . . . . . . . . . . . . . . . . Operators 2 | . . . . . 1 . . . . . . . . . . . . . . . . . . . . . . . . 1 Fabricators 2 | . . . . . . . . . . . . . 1 . . . . . 1 . . . . . . . . . . . Overload 1 | . . . . . . . . . . . . . 1 . . . . . . . . . . . . . . . . . Recompile 1 | . . . . . . . . . . . . . . . . . . . 1 . . . . . . . . . . . Repair Stations 1 | . . . . . 1 . . . . . . . . . . . . . . . . . . . . . . . . . Mechanics 1 | . . . . . 1 . . . . . . . . . . . . . . . . . . . . . . . . . Recycling Units 2 | . . . . . 2 . . . . . . . . . . . . . . . . . . . . . . . . . Reject 2 | . . . . . 2 . . . . . . . . . . . . . . . . . . . . . . . . . Scanalyzers . | . . . . . . . . . . . . . . . . . . . . . . . . . . . . . . . Garrison Access 2 | . . . . . 1 . . . . . 1 . . . . . . . . . . . . . . . . . . . Reprogram 2 | . . . . . 1 . . . . . 1 . . . . . . . . . . . . . . . . . . . Data Cores Recovered 1 | . . . . . . . 1 . . . . . . . . . . . . . . . . . . . . . . . Used . | . . . . . . . . . . . . . . . . . . . . . . . . . . . . . . . Hacking Detections 102 | . 5 1 . . 12 2 1 1 5 3 4 2 15 2 2 2 4 3 8 1 . . 5 3 2 . 1 . 7 11 Full Trace Events 21 | . . 1 . . 1 1 1 . . . 2 . 2 . 1 . . 2 1 . . . 1 1 2 . 1 . 1 3 Feedback Events 1 | . . . . . . . . . . . . . . . . . . 1 . . . . . . . . . . . . Corruption 1 | . . . . . . . . . . . . . . . . . . 1 . . . . . . . . . . . . Feedback Blocked . | . . . . . . . . . . . . . . . . . . . . . . . . . . . . . . . Robot Schematics Acquired . | . . . . . . . . . . . . . . . . . . . . . . . . . . . . . . . Robots Built . | . . . . . . . . . . . . . . . . . . . . . . . . . . . . . . . Authchips . | . . . . . . . . . . . . . . . . . . . . . . . . . . . . . . . Time . | . . . . . . . . . . . . . . . . . . . . . . . . . . . . . . . Total Robot Build Rating . | . . . . . . . . . . . . . . . . . . . . . . . . . . . . . . . Part Schematics Acquired 2 | . . . . . . . . . . . 1 . . . . . . . 1 . . . . . . . . . . . Parts Built 6 | . . . . . . . . . . . . . 2 . . . . . . . . . 3 . . . . . 1 . Authchips 2 | . . . . . . . . . . . . . . . . . . . . . . . 2 . . . . . . . Time 174 | . . . . . . . . . . . . . 58 . . . . . . . . . 70 . . . . . 46 . Total Part Build Rating 42 | . . . . . . . . . . . . . 14 . . . . . . . . . 19 . . . . . 9 . Parts Repaired 7 | . 1 . . . 3 . . . 1 . 1 . . . . . . . 1 . . . . . . . . . . . Time 231 | . 13 . . . 90 . . . 16 . 62 . . . . . . . 50 . . . . . . . . . . . Parts Recycled . | . . . . . . . . . . . . . . . . . . . . . . . . . . . . . . . Recycled Matter . | . . . . . . . . . . . . . . . . . . . . . . . . . . . . . . . Retrieved Matter . | . . . . . . . . . . . . . . . . . . . . . . . . . . . . . . . Retrieved Components 16 | . . . . . 1 . . . . . . . 14 . . . . . 1 . . . . . . . . . . . Parts Scanalyzed 3 | . . . . . . . . . . . 1 . 1 . . . . . 1 . . . . . . . . . . . Part Schematics Acquired 2 | . . . . . . . . . . . 1 . . . . . . . 1 . . . . . . . . . . . Parts Damaged 1 | . . . . . . . . . . . . . 1 . . . . . . . . . . . . . . . . . Bothacking | -11 -10 -10 -10 -9 -8 -8 -8 -8 -7 -7 -6 -6 -6 -6 -5 -5 -5 -5 -4 -4 -4 -4 -3 -3 -2 -2 -2 -2 -1 -1 ------------ Run | Yrd Mat Min Exi Min Mat Gar Mat Gar Fac Gar Fac Gar Fac Gar Fac Gar Fac Gar Fac Gar Fac DSF Res Gar Res Gar Res Gar Acc Com Used RIF Installer 12 | . . . . . . 2 . 2 . . . 1 . 1 . 1 . 1 . 1 . . . 1 . 1 . 1 . . Hotswap 1 | . . . . . . . . . . . . . . 1 . . . . . . . . . . . . . . . . Code Merge 1 | . . . . . . . . . . . . . . . . . . . . . . . . . . 1 . . . . Command Fork 2 | . . . . . . . . 1 . . . . . . . . . . . . . . . . . . . 1 . . Threat Obfuscator 1 | . . . . . . . . . . . . . . . . . . 1 . . . . . . . . . . . . Signal Jammer 1 | . . . . . . . . 1 . . . . . . . . . . . . . . . . . . . . . . Robot Detection 1 | . . . . . . . . . . . . . . . . 1 . . . . . . . . . . . . . . Patrol Navigation 1 | . . . . . . . . . . . . 1 . . . . . . . . . . . . . . . . . . Structural Interface 1 | . . . . . . 1 . . . . . . . . . . . . . . . . . . . . . . . . Autoassimilate 1 | . . . . . . . . . . . . . . . . . . . . 1 . . . . . . . . . . Crosswire 1 | . . . . . . . . . . . . . . . . . . . . . . . . 1 . . . . . . Robots Hacked 112 | . . . . . . . . . 1 4 2 9 9 . 6 . 7 12 9 3 . . 9 3 7 11 . 8 3 9 Non-combat 19 | . . . . . . . . . 1 . . . 3 . 1 . 3 . 3 . . . 4 . 2 . . . 1 1 Combat 93 | . . . . . . . . . . 4 2 9 6 . 5 . 4 12 6 3 . . 5 3 5 11 . 8 2 8 Autoassimilated 16 | . . . . . . . . . . . . . . . . . . . . . . . 1 . . 4 . 4 . 7 Robot Hacks Applied 114 | . . . . . . . . . 1 4 2 10 12 . 9 . 11 12 10 3 . . 8 3 7 7 . 4 4 7 parse_system 4 | . . . . . . . . . . 1 . . 2 . . . . . . . . . . . . . . 1 . . drop_inventory 1 | . . . . . . . . . . . . . . . . . . . . . . . 1 . . . . . . . purge_threat 15 | . . . . . . . . . . . . . 2 . 4 . 4 . 1 . . . . . . . . . . 4 block_reporting 2 | . . . . . . . . . . . . . 1 . . . . . . . . . . . . . . . . 1 map_route 2 | . . . . . . . . . . . . . . . . . . . . . . . 2 . . . . . . . redirect_shields 1 | . . . . . . . . . . . . . . . . . 1 . . . . . . . . . . . . . spike_heat 1 | . . . . . . . . . . 1 . . . . . . . . . . . . . . . . . . . . overload_power 2 | . . . . . . . . . . . . . . . 1 . . 1 . . . . . . . . . . . . amplify_resonance 8 | . . . . . . . . . . . . . . . . . . 2 1 . . . . 1 . 2 . 1 1 . reboot_system 1 | . . . . . . . . . . . . . . . . . . . . . . . . . 1 . . . . . overwrite_iff 36 | . . . . . . . . . . 1 2 9 3 . 3 . 2 3 2 . . . 2 . 1 5 . 2 1 . streamctrl_low 1 | . . . . . . . . . . . . . 1 . . . . . . . . . . . . . . . . . streamctrl_high 2 | . . . . . . . . . . . . . . . . . . . 1 . . . 1 . . . . . . . formatsys_low 8 | . . . . . . . . . 1 . . . . . . . 1 . 3 . . . 1 . 1 . . . . 1 formatsys_high 30 | . . . . . . . . . . 1 . 1 3 . 1 . 3 6 2 3 . . 1 2 4 . . . 2 1 Relay Couplers Released 109 | . . . . . . 13 . 7 . 21 . 3 . 12 . 8 . 8 . 9 . . 3 8 . 12 . 5 . . Machine Destruction 98 | . . . . . . 13 . 7 . 17 . 3 . 12 . 4 . 8 . 9 . . . 8 . 12 . 5 . . Programmers 11 | . . . . . . . . . . 4 . . . . . 4 . . . . . . 3 . . . . . . . Attached 43 | . . . . . . . . . 1 4 . 2 3 1 3 2 3 2 1 1 . . 3 2 1 7 . 2 1 4 Crosswired 4 | . . . . . . . . . . . . . . . . . . . . . . . . 2 . 1 . 1 . . Merged Code Value 8 | . . . . . . . . . . . . . . . . . . . . . . . . . . . . 8 . . Fabnet Peak Effective % . | . . . . . . . . . . . . . . . . . . . . . . . . . . . . . . . Robots Rewired 9 | . . . . . . . . . . . . 3 . . . 2 . . . 3 . . . . . . . 1 . . Allies Hacked 5 | . . . . . . . . . . . . . . . . . . . 1 . . . 1 . . . . . . 3 Hacks Repelled . | . . . . . . . . . . . . . . . . . . . . . . . . . . . . . . . Allies | -11 -10 -10 -10 -9 -8 -8 -8 -8 -7 -7 -6 -6 -6 -6 -5 -5 -5 -5 -4 -4 -4 -4 -3 -3 -2 -2 -2 -2 -1 -1 -------- Run | Yrd Mat Min Exi Min Mat Gar Mat Gar Fac Gar Fac Gar Fac Gar Fac Gar Fac Gar Fac Gar Fac DSF Res Gar Res Gar Res Gar Acc Com Total Allies 158 | . . 4 . . 3 2 . . 1 4 5 18 12 3 6 6 6 14 11 8 . . 7 4 6 12 . 8 4 14 Largest Group 9 | . . 3 3 3 3 3 3 3 2 6 5 5 5 2 2 5 2 6 3 7 6 6 4 3 3 4 2 3 3 9 Highest-Rated Group 1343 | . . 40 40 40 90 120 107 107 81 283 268 182 182 97 97 383 76 210 94 343 232 232 203 204 115 215 124 177 226 1343 Highest-Rated Ally 219 | . . 31 16 16 58 58 58 58 58 95 95 47 46 85 51 148 47 47 49 80 49 49 64 95 69 69 62 119 119 219 Total Orders 110 | . . . . 7 . 6 . 2 6 8 2 . 1 . . 13 1 . 15 12 . 5 11 . 1 2 . . 1 17 STAY 50 | . . . . 6 . 3 . 1 3 3 . . 1 . . 4 . . 7 7 . 2 4 . . 1 . . 1 7 ROAM 6 | . . . . . . . . . . . . . . . . 4 . . . . . . . . . . . . . 2 FOLLOW 35 | . . . . 1 . 3 . 1 2 2 . . . . . 5 . . 6 2 . 1 3 . . 1 . . . 8 AID 19 | . . . . . . . . . 1 3 2 . . . . . 1 . 2 3 . 2 4 . 1 . . . . . Ally Attacks 1015 | . . 3 . 9 20 40 . 26 7 63 63 67 80 23 11 83 39 41 33 50 . 38 25 51 14 21 . 49 30 129 Total Damage 33817 | . . 64 . 92 286 846 . 844 138 2314 3523 1107 1686 1389 263 2898 623 797 594 1886 . 1453 812 2041 554 629 . 1255 1141 6582 Kills 215 | . . . . 4 2 10 . 6 3 26 23 11 12 8 . 20 6 4 1 11 . 3 6 9 2 3 . 5 7 33 Allies Corrupted 12 | . . . . . . . . . . . 1 . 1 . . 2 1 . 2 . . . 2 . . . . . . 3 Allies Melted 3 | . . . . . . . . . . . . . . . 1 1 1 . . . . . . . . . . . . . Field Lobotomies 3 | . . . . . . . . . . . . . . . . . . . . . . . . . . . . . . 3 Intel | -11 -10 -10 -10 -9 -8 -8 -8 -8 -7 -7 -6 -6 -6 -6 -5 -5 -5 -5 -4 -4 -4 -4 -3 -3 -2 -2 -2 -2 -1 -1 ------- Run | Yrd Mat Min Exi Min Mat Gar Mat Gar Fac Gar Fac Gar Fac Gar Fac Gar Fac Gar Fac Gar Fac DSF Res Gar Res Gar Res Gar Acc Com Robot Analysis Total 7 | . 2 1 . . 3 . . . . . . . 1 . . . . . . . . . . . . . . . . . Derelict Logs Recovered 2 | . . 1 . 1 . . . . . . . . . . . . . . . . . . . . . . . . . . Drone Launches . | . . . . . . . . . . . . . . . . . . . . . . . . . . . . . . . Drone Recoveries . | . . . . . . . . . . . . . . . . . . . . . . . . . . . . . . . Exploration | -11 -10 -10 -10 -9 -8 -8 -8 -8 -7 -7 -6 -6 -6 -6 -5 -5 -5 -5 -4 -4 -4 -4 -3 -3 -2 -2 -2 -2 -1 -1 ------------- Run | Yrd Mat Min Exi Min Mat Gar Mat Gar Fac Gar Fac Gar Fac Gar Fac Gar Fac Gar Fac Gar Fac DSF Res Gar Res Gar Res Gar Acc Com Turns Passed 40580 | 10 984 1276 522 1325 6061 941 29 990 747 1957 1021 1296 3308 1421 935 1752 1603 1528 2209 936 22 213 1485 1357 185 1561 109 743 1176 2878 Spaces Moved 18606 | 5 433 711 324 727 2705 504 17 474 219 793 496 645 1692 661 354 687 486 698 994 466 14 88 581 642 89 720 64 303 500 1514 Core 122 | . . . . . . . . . . . . . . . . . . . . . . . . . . . . . . 122 Treads 17230 | 5 433 711 324 727 2705 36 . 95 219 793 496 645 1692 661 354 687 486 698 994 466 14 88 581 642 89 539 64 303 406 1277 Legs . | . . . . . . . . . . . . . . . . . . . . . . . . . . . . . . . Wheels 1151 | . . . . . . 468 17 379 . . . . . . . . . . . . . . . . . 181 . . 94 12 Hover 103 | . . . . . . . . . . . . . . . . . . . . . . . . . . . . . . 103 Flight . | . . . . . . . . . . . . . . . . . . . . . . . . . . . . . . . Fastest Speed 50 | 160 160 160 160 160 160 150 150 150 242 160 160 160 160 160 160 160 240 160 160 166 166 166 166 155 155 155 155 155 163 50 Average Speed 171 | 160 160 160 160 160 181 156 150 168 242 210 160 160 160 160 192 214 242 167 161 166 166 166 166 163 155 162 155 158 174 145 Slowest Speed 325 | 160 160 160 160 160 243 243 150 243 242 325 160 160 160 160 240 240 246 246 166 166 166 166 166 166 155 232 155 163 245 233 Overloaded Moves . | . . . . . . . . . . . . . . . . . . . . . . . . . . . . . . . Propulsion Burnouts . | . . . . . . . . . . . . . . . . . . . . . . . . . . . . . . . Robots Hopped . | . . . . . . . . . . . . . . . . . . . . . . . . . . . . . . . Cave-ins Triggered . | . . . . . . . . . . . . . . . . . . . . . . . . . . . . . . . Exploration Rate (%) 49 | 2 67 98 69 92 81 68 4 65 7 81 16 68 51 71 9 84 17 86 24 51 . 83 20 84 4 89 3 44 15 36 Regions Visited 30 Branch Regions 4 Pre-discovered Areas 3 | . . . 1 2 . . . . . . . . . . . . . . . . . . . . . . . . . . Known Exits Taken 12 | . . . . . 1 . 1 . 1 . 1 . 1 . 1 . 1 . 1 . 1 . 1 . 1 . 1 . . . Unknown Exits Taken 6 | 1 1 1 1 1 . . . . . . . . . . . . . . . . . . . . . . . . 1 . Scrap Searched 4 | . . 2 . 2 . . . . . . . . . . . . . . . . . . . . . . . . . . Spaces Dug 241 | . . 21 . . 2 . . . . 16 13 10 31 34 . . 2 . 9 4 . . . 27 1 . 4 7 5 55 Terrain Destroyed 1022 | . . 21 . . 61 10 . 8 . 39 44 39 185 50 97 62 53 9 42 23 . 18 14 38 4 18 4 42 34 107 Melee . | . . . . . . . . . . . . . . . . . . . . . . . . . . . . . . . Projectile 370 | . . . . . 19 . . . . . 1 2 30 12 7 4 23 9 42 6 . 4 14 19 4 18 4 11 34 107 AOE 652 | . . 21 . . 42 10 . 8 . 39 43 37 155 38 90 58 30 . . 17 . 14 . 19 . . . 31 . . Terrain Rammed . | . . . . . . . . . . . . . . . . . . . . . . . . . . . . . . . Walls Destroyed . | . . . . . . . . . . . . . . . . . . . . . . . . . . . . . . . Machines Disabled . | . . . . . . . . . . . . . . . . . . . . . . . . . . . . . . . Actions | -11 -10 -10 -10 -9 -8 -8 -8 -8 -7 -7 -6 -6 -6 -6 -5 -5 -5 -5 -4 -4 -4 -4 -3 -3 -2 -2 -2 -2 -1 -1 --------- Run | Yrd Mat Min Exi Min Mat Gar Mat Gar Fac Gar Fac Gar Fac Gar Fac Gar Fac Gar Fac Gar Fac DSF Res Gar Res Gar Res Gar Acc Com Total 25129 | 6 614 807 330 884 3712 609 18 624 434 983 710 846 2164 894 513 914 739 928 1454 592 13 135 1030 849 118 984 70 494 697 1964 Wait 3671 | . 65 48 . 139 797 46 . 61 206 66 165 109 236 43 50 148 108 99 295 65 . 15 354 78 1 122 . 93 96 166 Move 18583 | 4 432 710 323 726 2704 503 17 473 219 792 495 644 1692 660 354 686 486 697 994 465 13 87 581 641 89 718 64 302 499 1513 Hop . | . . . . . . . . . . . . . . . . . . . . . . . . . . . . . . . Pick Up 288 | . 21 7 3 4 45 5 . 8 2 11 13 3 26 23 7 8 6 11 12 8 . 4 7 13 . 12 . 5 8 16 Fast Attach 152 | . 3 . . . 4 . . . 1 6 2 2 20 8 10 4 13 5 14 3 . 2 3 9 3 13 . 8 11 8 Attach 99 | . 4 1 . . 4 . . . 2 . 4 3 19 7 6 2 3 3 4 . . . 4 3 1 4 . 2 11 12 Detach 59 | . 1 . . . 1 . . . . 3 . . 10 5 4 4 2 5 4 1 . 1 . . 1 2 . 3 4 8 Swap 318 | 2 2 8 . 2 27 7 . 5 2 16 7 16 15 4 13 13 16 19 27 6 . 10 23 19 3 13 1 7 14 21 Drop 317 | . 15 6 4 4 42 5 . 8 . 18 12 5 36 25 6 6 11 12 18 7 . 6 7 19 1 14 1 10 2 17 Fire 1337 | . 64 21 . 2 79 27 1 27 . 55 10 41 103 118 51 31 86 71 72 24 . 10 39 62 19 71 4 43 51 155 Melee 28 | . . . . . . . . . 1 5 2 1 . . 9 . . 2 6 . . . 1 . . . . 1 . . Ram 4 | . . . . . . . . . . . . . . . . . . . . . . . . . . . . . . 4 Kick . | . . . . . . . . . . . . . . . . . . . . . . . . . . . . . . . Crush 63 | . 7 5 . 7 9 . . . . . . 2 7 1 2 . 5 . 5 . . . 4 5 . . . . 1 3 Escape Stasis 127 | . . . . . . 16 . 42 . 10 . . . . . 12 2 2 . 1 . . . . . 10 . . . 32 Rewire 66 | . . 1 . . . . . . 1 1 . 18 . . 1 . 1 2 3 12 . . 3 . . 1 . 20 . 2 Trap 17 | . . . . . . . . . . . . 2 . . . . . . . . . . 4 . . 4 . . . 7 Miscellaneous . | . . . . . . . . . . . . . . . . . . . . . . . . . . . . . . . Route ------- -11/Scrapyard -10/Materials (discovered 2 exits: *Min x2) -10/Mines (discovered 3 exits: [*Mat x2] / *Exi) -10/Exiles -9/Mines (discovered 2 exits: *Mat x2) -8/Materials (discovered 3 exits: *Fac x2 / Gar) -8/Garrison (discovered 2 exits: *Mat x2) -8/Materials -8/Garrison (discovered 2 exits: *Fac x2) -7/Factory -7/Garrison (discovered 3 exits: *Fac x3) -6/Factory -6/Garrison (discovered 3 exits: *Fac x3) -6/Factory (discovered 3 exits: *Fac x2 / Gar) -6/Garrison (discovered 2 exits: *Fac x2) -5/Factory -5/Garrison (discovered 3 exits: *Fac x3) -5/Factory (discovered 2 exits: [*Ext] / Gar) -5/Garrison (discovered 3 exits: *Fac x3) -4/Factory -4/Garrison (discovered 3 exits: *Fac x3) -4/Factory -4/DSF -3/Research -3/Garrison (discovered 3 exits: *Res x3) -2/Research -2/Garrison (discovered 3 exits: *Res x3) -2/Research -2/Garrison -1/Access -1/Command To Epsilon Eridani History --------- Turn | Location | Event 4 | -11/Scrapyard | Discovered new exit (range 3) 11 | -11/Scrapyard | Entered Materials 140 | -10/Materials | Central database locked down 181 | -10/Materials | Discovered new exit (range 13) 181 | -10/Materials | Discovered new exit (range 20) 337 | -10/Materials | Build established: Mutant 933 | -10/Materials | Repaired Lgt. Treads 995 | -10/Materials | Entered Mines 1039 | -10/Mines | Deemed a non-threat by the Exiles lab entrance 1388 | -10/Mines | Met a Derelict testing a Signal Generator 1392 | -10/Mines | Learned Materials trap positions 1833 | -10/Mines | Discovered new exit (range 11) 1862 | -10/Mines | Joined a pair of Derelicts in attacking an 0b10 outpost 1911 | -10/Mines | Build established: Scavenger-Mutant 1998 | -10/Mines | Found a hidden stash of uninstalled traps 2027 | -10/Mines | Discovered new exit (range 9) 2048 | -10/Mines | Assisted by bots powering up and referring to "LRC-V3" 2217 | -10/Mines | Build established: Mutant 2262 | -10/Mines | Discovered new exit (range 5) 2271 | -10/Mines | Entered Exiles 2271 | -10/Exiles | Accompanied by 3 allies 2311 | -10/Exiles | Met 8R-AWN 2337 | -10/Exiles | Met EX-HEX 2423 | -10/Exiles | Met EX-DEC 2516 | -10/Exiles | Learned location of Zion (-6) 2547 | -10/Exiles | Met EX-BIN 2569 | -10/Exiles | Aligned with FarCom system 2571 | -10/Exiles | Given EX-Vault access code 2609 | -10/Exiles | Opened EX-Vault 2620 | -10/Exiles | Found Trap Reconfigurator 2625 | -10/Exiles | Found Field Lobotomy Kit 2631 | -10/Exiles | Found AWS/Gauss 2667 | -10/Exiles | Warned to stay clear of 0b10 Research branches 2769 | -10/Exiles | Discovered new exit (range 12) 2793 | -10/Exiles | Stole three prototypes: Trap Reconfigurator, AWS/Gauss, Field Lobotomy Kit 2793 | -10/Exiles | Entered Mines 2793 | -9/Mines | Accompanied by 3 allies 2794 | -9/Mines | Assembled infested the area 2799 | -9/Mines | Assisted by a Guerilla fighting off Assembled 2941 | -9/Mines | Met a Derelict shopkeep closing up shop 3192 | -9/Mines | Discovered new exit (range 6) 3227 | -9/Mines | Discovered new exit (range 10) 3453 | -9/Mines | Received a Rocket Launcher from a helpful Derelict 3887 | -9/Mines | Learned location of Storage (-7) 4118 | -9/Mines | Entered Materials 4118 | -8/Materials | Accompanied by 2 allies 4118 | -8/Materials | Evolved 4 slots: Propulsion x1, Utility x3 4119 | -8/Materials | Loaded intel: 17 trap records 4401 | -8/Materials | Build established: Scavenger-Mutant 5132 | -8/Materials | Discovered new exit (range 10) 5367 | -8/Materials | Discovered new exit (range 16) 5859 | -8/Materials | Garrison activated, responded to threat 6739 | -8/Materials | Repaired Rocket Launcher 6766 | -8/Materials | Repaired Lgt. Treads 6939 | -8/Materials | Central database locked down 7046 | -8/Materials | Build established: Mutant 8396 | -8/Materials | Repaired Particle Cannon 9519 | -8/Materials | Botcube activated 9543 | -8/Materials | Botcube completed mutation into treaded form, armed with 2 guns. 10051 | -8/Materials | Identified exit to Garrison 10179 | -8/Materials | Entered Garrison 10179 | -8/Garrison | Accompanied by 3 allies 10191 | -8/Garrison | Phase Generator disabled 10222 | -8/Garrison | Triggered checkpoint 10238 | -8/Garrison | Installed Relay Interface Framework 10355 | -8/Garrison | Garrison Relay disabled 10368 | -8/Garrison | Triggered checkpoint 10418 | -8/Garrison | Expanded RIF knowledge: Structural Interface 10550 | -8/Garrison | Triggered checkpoint 10562 | -8/Garrison | Triggered checkpoint 10627 | -8/Garrison | Rescued a captive Derelict 10627 | -8/Garrison | Rescued a captive Derelict 10701 | -8/Garrison | Discovered new exit (range 14) 10773 | -8/Garrison | Garrison Relay disabled 10953 | -8/Garrison | Discovered new exit (range 10) 11044 | -8/Garrison | Garrison Relay disabled 11089 | -8/Garrison | Build established: Bothacker-Mutant 11120 | -8/Garrison | Entered Materials 11120 | -8/Materials | Accompanied by 3 allies 11149 | -8/Materials | Identified exit to Garrison 11149 | -8/Materials | Entered Garrison 11149 | -8/Garrison | Accompanied by 3 allies 11182 | -8/Garrison | Triggered checkpoint 11225 | -8/Garrison | Garrison Relay disabled 11250 | -8/Garrison | Triggered checkpoint 11377 | -8/Garrison | Expanded RIF knowledge: Signal Jamming 11496 | -8/Garrison | Triggered checkpoint 11502 | -8/Garrison | Destroyed 7 combat bots 11580 | -8/Garrison | Discovered new exit (range 14) 11836 | -8/Garrison | Triggered checkpoint 11880 | -8/Garrison | Garrison Relay disabled 11981 | -8/Garrison | Discovered new exit (range 2) 12022 | -8/Garrison | Expanded RIF knowledge: Command Fork 12139 | -8/Garrison | Entered Factory 12139 | -7/Factory | Accompanied by 1 ally 12139 | -7/Factory | Evolved 2 slots: Propulsion x1, Utility x1 12141 | -7/Factory | FarCom data flow suspended 12331 | -7/Factory | Build established: Botlord-Mutant 12550 | -7/Factory | Repaired Hrd. Light Armor Plating 12886 | -7/Factory | Identified exit to Garrison 12886 | -7/Factory | Entered Garrison 12886 | -7/Garrison | Accompanied by 2 allies 12924 | -7/Garrison | Triggered checkpoint 13064 | -7/Garrison | Triggered checkpoint 13258 | -7/Garrison | Triggered checkpoint 13274 | -7/Garrison | Triggered checkpoint 13279 | -7/Garrison | Triggered checkpoint 13302 | -7/Garrison | Destroyed 10 combat bots 13424 | -7/Garrison | Triggered checkpoint 13482 | -7/Garrison | Garrison Relay disabled 13513 | -7/Garrison | Garrison Relay disabled 13566 | -7/Garrison | Triggered checkpoint 13900 | -7/Garrison | Triggered checkpoint 13936 | -7/Garrison | Found embedded Infiltrators 14012 | -7/Garrison | Triggered checkpoint 14475 | -7/Garrison | Discovered new exit (range 11) 14482 | -7/Garrison | Triggered checkpoint 14534 | -7/Garrison | Triggered checkpoint 14568 | -7/Garrison | Discovered new exit (range 84) 14568 | -7/Garrison | Discovered new exit (range 77) 14568 | -7/Garrison | Discovered new exit (range 12) 14710 | -7/Garrison | Build established: Bothacker-Mutant 14746 | -7/Garrison | Triggered checkpoint 14843 | -7/Garrison | Entered Factory 14843 | -6/Factory | Accompanied by 5 allies 14843 | -6/Factory | Evolved 2 slots: Power x1, Utility x1 15193 | -6/Factory | First assault squad dispatched 15575 | -6/Factory | Repaired Imp. Heavy Treads 15657 | -6/Factory | Identified exit to Garrison 15680 | -6/Factory | P-60 Hacker assimilated allied YO-XUP(x) 15797 | -6/Factory | Found Botcube 15864 | -6/Factory | Entered Garrison 15864 | -6/Garrison | Accompanied by 3 allies 15924 | -6/Garrison | Triggered checkpoint 15975 | -6/Garrison | Learned Factory security intel 15976 | -6/Garrison | Lost 3 allies 16084 | -6/Garrison | Triggered checkpoint 16101 | -6/Garrison | Triggered checkpoint 16338 | -6/Garrison | Triggered checkpoint 16342 | -6/Garrison | Triggered checkpoint 16398 | -6/Garrison | Lost 4 allies 16452 | -6/Garrison | Triggered checkpoint 16513 | -6/Garrison | Garrison Relay disabled 16644 | -6/Garrison | Discovered new exit (range 12) 16646 | -6/Garrison | Triggered checkpoint 16690 | -6/Garrison | Triggered checkpoint 16776 | -6/Garrison | Rescued a captive Derelict 16777 | -6/Garrison | Rescued a captive Derelict 16820 | -6/Garrison | Discovered new exit (range 12) 16820 | -6/Garrison | Discovered new exit (range 88) 16820 | -6/Garrison | Discovered new exit (range 56) 17000 | -6/Garrison | Expanded RIF knowledge: Patrol Navigation 17044 | -6/Garrison | Triggered checkpoint 17160 | -6/Garrison | Entered Factory 17160 | -6/Factory | Accompanied by 5 allies 17310 | -6/Factory | Build established: Botlord-Mutant 17401 | -6/Factory | Discovered new exit (range 15) 17510 | -6/Factory | First assault squad dispatched 17863 | -6/Factory | Discovered new exit (range 16) 18419 | -6/Factory | Cargo convoy interrupted 18457 | -6/Factory | Lost 3 allies 18470 | -6/Factory | Destroyed 8 combat bots 18501 | -6/Factory | Found Prototype Processor 18501 | -6/Factory | Identified Exp. Target Analyzer 18543 | -6/Factory | Build established: Bothacker-Mutant 19348 | -6/Factory | Fabricated Imp. Heavy Treads (x2) 19496 | -6/Factory | Allied Derelicts emerged from ambush trap array 20102 | -6/Factory | Build established: Mutant 20468 | -6/Factory | Identified exit to Garrison 20468 | -6/Factory | Entered Garrison 20495 | -6/Garrison | Expanded RIF knowledge: Hotswap 20546 | -6/Garrison | Triggered checkpoint 20749 | -6/Garrison | Garrison Relay disabled 20834 | -6/Garrison | Found Unknown Hackware 20834 | -6/Garrison | Identified Relay Coupler [Proto] 21050 | -6/Garrison | Build established: Bothacker-Mutant 21072 | -6/Garrison | Botcube activated 21090 | -6/Garrison | Botcube completed mutation into treaded form, armed with 1 cannon. 21170 | -6/Garrison | Spotted B-75 Beast 21192 | -6/Garrison | Destroyed B-75 Beast 21196 | -6/Garrison | Triggered checkpoint 21236 | -6/Garrison | Triggered checkpoint 21374 | -6/Garrison | Discovered new exit (range 11) 21504 | -6/Garrison | Garrison Relay disabled 21516 | -6/Garrison | Triggered checkpoint 21548 | -6/Garrison | Spotted B-75 Beast 21714 | -6/Garrison | Discovered new exit (range 5) 21756 | -6/Garrison | Build established: Botlord-Mutant 21772 | -6/Garrison | Triggered checkpoint 21778 | -6/Garrison | Triggered checkpoint 21787 | -6/Garrison | Garrison Relay disabled 21845 | -6/Garrison | Rescued a captive Derelict 21846 | -6/Garrison | Rescued a captive Derelict 21889 | -6/Garrison | Entered Factory 21889 | -5/Factory | Accompanied by 2 allies 21889 | -5/Factory | Evolved 2 slots: Utility x1, Weapon x1 22162 | -5/Factory | Lost 4 allies 22189 | -5/Factory | First assault squad dispatched 22657 | -5/Factory | Destroyed 8 combat bots 22824 | -5/Factory | Identified exit to Garrison 22824 | -5/Factory | Entered Garrison 22824 | -5/Garrison | Accompanied by 1 ally 22866 | -5/Garrison | Triggered checkpoint 22978 | -5/Garrison | Build established: Botlord-Gunner 23078 | -5/Garrison | Garrison Relay disabled 23264 | -5/Garrison | Spotted B-75 Beast 23271 | -5/Garrison | Rewired B-75 Beast 23274 | -5/Garrison | Rewired B-90 Cyclops 23412 | -5/Garrison | Triggered checkpoint 23541 | -5/Garrison | Expanded RIF knowledge: Robot Detection 23616 | -5/Garrison | Discovered new exit (range 13) 23756 | -5/Garrison | Triggered checkpoint 23802 | -5/Garrison | Triggered checkpoint 24004 | -5/Garrison | Discovered new exit (range 15) 24030 | -5/Garrison | Triggered checkpoint 24031 | -5/Garrison | Found embedded Infiltrators 24186 | -5/Garrison | Rescued a captive Derelict 24187 | -5/Garrison | Rescued a captive Derelict 24266 | -5/Garrison | Triggered checkpoint 24352 | -5/Garrison | Triggered checkpoint 24503 | -5/Garrison | Discovered new exit (range 68) 24503 | -5/Garrison | Discovered new exit (range 25) 24503 | -5/Garrison | Discovered new exit (range 24) 24576 | -5/Garrison | Entered Factory 24576 | -5/Factory | Accompanied by 2 allies 24876 | -5/Factory | First assault squad dispatched 25678 | -5/Factory | Build established: Botlord-Tank 25964 | -5/Factory | Garrison activated, responded to threat 25964 | -5/Factory | P-70 Sage assimilated allied Smith 6a 25993 | -5/Factory | Found Prototype Processor 25993 | -5/Factory | Identified Exp. Targeting Computer 26164 | -5/Factory | Discovered new exit (range 15) 26178 | -5/Factory | System corruption reached 10% 26179 | -5/Factory | Identified exit to Garrison 26179 | -5/Factory | Entered Garrison 26180 | -5/Garrison | Triggered checkpoint 26292 | -5/Garrison | Build established: Bothacker-Tank 26706 | -5/Garrison | Triggered checkpoint 26725 | -5/Garrison | Triggered checkpoint 26840 | -5/Garrison | Discovered new exit (range 5) 26865 | -5/Garrison | Expanded RIF knowledge: Threat Obfuscation 26963 | -5/Garrison | Garrison Relay disabled 27043 | -5/Garrison | Rescued a captive Derelict 27216 | -5/Garrison | Triggered checkpoint 27262 | -5/Garrison | Build established: Botlord-Tank 27264 | -5/Garrison | Garrison Relay disabled 27334 | -5/Garrison | Discovered new exit (range 13) 27467 | -5/Garrison | Discovered new exit (range 14) 27528 | -5/Garrison | Triggered checkpoint 27575 | -5/Garrison | Lost 8 allies 27707 | -5/Garrison | Entered Factory 27707 | -4/Factory | Accompanied by 2 allies 27707 | -4/Factory | Evolved 2 slots: Propulsion x2 27972 | -4/Factory | Found Prototype Hackware 27974 | -4/Factory | Lost 3 allies 27980 | -4/Factory | Identified Exp. Hacking Suite 28053 | -4/Factory | Found Prototype Processor 28053 | -4/Factory | Identified Exp. Signal Interpreter 28057 | -4/Factory | Found Exp. Signal Interpreter 28747 | -4/Factory | Spotted B-86 Titan 29495 | -4/Factory | Repaired Imp. Heavy Armor Plating 29799 | -4/Factory | Build established: Bothacker-Tank 29916 | -4/Factory | Identified exit to Garrison 29916 | -4/Factory | Entered Garrison 29916 | -4/Garrison | Accompanied by 2 allies 29964 | -4/Garrison | Triggered checkpoint 29996 | -4/Garrison | Found embedded Infiltrators 30003 | -4/Garrison | Garrison Relay disabled 30036 | -4/Garrison | Expanded RIF knowledge: Autoassimilate 30280 | -4/Garrison | Triggered checkpoint 30286 | -4/Garrison | Triggered checkpoint 30311 | -4/Garrison | Build established: Botlord-Tank 30477 | -4/Garrison | Triggered checkpoint 30622 | -4/Garrison | Discovered new exit (range 11) 30630 | -4/Garrison | Triggered checkpoint 30704 | -4/Garrison | Triggered checkpoint 30764 | -4/Garrison | Discovered new exit (range 12) 30764 | -4/Garrison | Discovered new exit (range 55) 30764 | -4/Garrison | Discovered new exit (range 83) 30779 | -4/Garrison | Garrison Relay disabled 30852 | -4/Garrison | Entered Factory 30852 | -4/Factory | Accompanied by 6 allies 30872 | -4/Factory | Identified exit to DSF 30874 | -4/Factory | Entered DSF 30874 | -4/DSF | Accompanied by 6 allies 30899 | -4/DSF | Additional patrols routed to DSF 30989 | -4/DSF | Lost 4 allies 31051 | -4/DSF | Sterilization system engaged 31066 | -4/DSF | Discovered new exit (range 14) 31071 | -4/DSF | Ambient heat levels rising (+10) 31086 | -4/DSF | Ambient heat levels rising (+10) 31087 | -4/DSF | Entered Research 31087 | -3/Research | Accompanied by 2 allies 31087 | -3/Research | Evolved 2 slots: Power x1, Utility x1 31479 | -3/Research | Fabricated Lrn. Missile Launcher (x1) 31523 | -3/Research | Fabricated Imp. Heavy Treads (x2) 31757 | -3/Research | P-80 Master assimilated allied Warden 8b 31792 | -3/Research | P-80 Master assimilated allied Smith 7a 32270 | -3/Research | System corruption reached 10% 32557 | -3/Research | Spotted B-86 Titan 32572 | -3/Research | Identified exit to Garrison 32572 | -3/Research | Entered Garrison 32599 | -3/Garrison | Lost 3 allies 32616 | -3/Garrison | Triggered checkpoint 32732 | -3/Garrison | Triggered checkpoint 32742 | -3/Garrison | Garrison Relay disabled 32754 | -3/Garrison | Heavy support dispatched to Research 32823 | -3/Garrison | Found embedded Infiltrators 32989 | -3/Garrison | Triggered checkpoint 32992 | -3/Garrison | Triggered checkpoint 33036 | -3/Garrison | Destroyed 7 combat bots 33073 | -3/Garrison | Discovered new exit (range 11) 33077 | -3/Garrison | Build established: Botlord-Gunner 33133 | -3/Garrison | Heavy support dispatched to Research 33218 | -3/Garrison | Triggered checkpoint 33418 | -3/Garrison | Triggered checkpoint 33449 | -3/Garrison | Garrison Relay disabled 33598 | -3/Garrison | H-XX Assembler disabled 33658 | -3/Garrison | Discovered new exit (range 3) 33661 | -3/Garrison | Identified exit to Research 33807 | -3/Garrison | Spotted B-86 Titan 33869 | -3/Garrison | Discovered exit to Research (range 12) 33894 | -3/Garrison | Expanded RIF knowledge: Crosswire 33929 | -3/Garrison | Entered Research 33929 | -2/Research | Evolved 2 slots: Utility x2 34104 | -2/Research | Garrison activated, responded to threat 34112 | -2/Research | Identified exit to Garrison 34114 | -2/Research | Entered Garrison 34114 | -2/Garrison | Accompanied by 1 ally 34145 | -2/Garrison | Lost 4 allies 34254 | -2/Garrison | Lost 5 allies 34302 | -2/Garrison | Found Relay Coupler [Proto] 34322 | -2/Garrison | Found Relay Coupler [Proto] 34325 | -2/Garrison | Found Relay Coupler [Proto] 34328 | -2/Garrison | Found Relay Coupler [Proto] 34384 | -2/Garrison | Triggered checkpoint 34396 | -2/Garrison | Garrison Relay disabled 34500 | -2/Garrison | Spotted B-90 Cyclops 34567 | -2/Garrison | Destroyed B-90 Cyclops 34598 | -2/Garrison | Triggered checkpoint 34599 | -2/Garrison | Triggered checkpoint 34641 | -2/Garrison | Lost 6 allies 34688 | -2/Garrison | Destroyed 7 combat bots 34727 | -2/Garrison | Lost 6 parts (1p1n3u1w) 34958 | -2/Garrison | Build established: Botlord-Mutant 35034 | -2/Garrison | Garrison Relay disabled 35079 | -2/Garrison | Discovered new exit (range 20) 35214 | -2/Garrison | Garrison Relay disabled 35430 | -2/Garrison | Discovered new exit (range 16) 35450 | -2/Garrison | Triggered checkpoint 35559 | -2/Garrison | Expanded RIF knowledge: Code Merge 35586 | -2/Garrison | Discovered new exit (range 10) 35603 | -2/Garrison | Found embedded Infiltrators 35675 | -2/Garrison | Entered Research 35675 | -2/Research | Accompanied by 2 allies 35704 | -2/Research | Build established: Botlord-Gunner 35784 | -2/Research | Identified exit to Garrison 35784 | -2/Research | Entered Garrison 35784 | -2/Garrison | Accompanied by 2 allies 35806 | -2/Garrison | Expanded RIF knowledge: Command Fork 35971 | -2/Garrison | Spotted B-90 Cyclops 35978 | -2/Garrison | Destroyed B-90 Cyclops 35988 | -2/Garrison | Triggered checkpoint 36007 | -2/Garrison | Triggered checkpoint 36038 | -2/Garrison | Lost 3 allies 36077 | -2/Garrison | Triggered checkpoint 36133 | -2/Garrison | Lost 3 parts (1p1u1w) 36161 | -2/Garrison | Destroyed 7 combat bots 36312 | -2/Garrison | Garrison Relay disabled 36381 | -2/Garrison | Discovered new exit (range 10) 36413 | -2/Garrison | Spotted Striker 36413 | -2/Garrison | Spotted Striker 36425 | -2/Garrison | Allies destroyed Striker 36428 | -2/Garrison | Allies destroyed Striker 36487 | -2/Garrison | Rewired Executioner 36527 | -2/Garrison | Entered Access 36527 | -1/Access | Accompanied by 2 allies 36527 | -1/Access | Evolved 2 slots: Utility x2 36787 | -1/Access | Fabricated Enh. Nova Cannon (x1) 37043 | -1/Access | Lost 5 parts (2p1n2u) 37101 | -1/Access | Destroyed 9 combat bots 37111 | -1/Access | Lost 4 parts (1p1n2u) 37383 | -1/Access | Build established: Botlord-Tank 37527 | -1/Access | First assault squad dispatched 37584 | -1/Access | Lost 3 parts (3u) 37687 | -1/Access | Discovered new exit (range 8) 37703 | -1/Access | Entered Command 37912 | -1/Command | Spotted B-99 Colossus 37915 | -1/Command | Assimilated B-99 Colossus with FLK Orb 37993 | -1/Command | First assault squad dispatched 38230 | -1/Command | System corruption reached 10% 38878 | -1/Command | Spotted M Guard 38878 | -1/Command | Spotted M Guard 38878 | -1/Command | Spotted Combat Programmer 38879 | -1/Command | Autoassimilated Combat Programmer with RIF 38879 | -1/Command | Autoassimilated M Guard with RIF 38887 | -1/Command | Allies destroyed M Guard 38889 | -1/Command | Spotted Combat Programmer 38890 | -1/Command | Autoassimilated Combat Programmer with RIF 39277 | -1/Command | Spotted Executioner 39277 | -1/Command | Spotted Striker 39278 | -1/Command | Autoassimilated Executioner with RIF 39279 | -1/Command | Spotted Executioner 39279 | -1/Command | Spotted Alpha 7 39280 | -1/Command | Autoassimilated Alpha 7 with RIF 39280 | -1/Command | Spotted B-99 Colossus 39280 | -1/Command | Spotted Executioner 39280 | -1/Command | Spotted Executioner 39280 | -1/Command | Spotted Striker 39281 | -1/Command | Autoassimilated Executioner with RIF 39284 | -1/Command | Allies destroyed Striker 39285 | -1/Command | Spotted B-99 Colossus 39287 | -1/Command | Assimilated Executioner with formatsys_high 39287 | -1/Command | Assimilated Executioner with formatsys_high 39289 | -1/Command | Assimilated B-99 Colossus with FLK Orb 39294 | -1/Command | Assimilated B-99 Colossus with FLK Orb 39297 | -1/Command | Allies destroyed Striker 39323 | -1/Command | Lost 3 allies 39359 | -1/Command | Build established: Botlord-Gunner 39476 | -1/Command | Allies destroyed Alpha 7 39514 | -1/Command | Lost 3 allies 39944 | -1/Command | Build established: Scavenger-Tank 40068 | -1/Command | Core integrity fell below 50% 40106 | -1/Command | Lost 4 parts (1n3u) 40443 | -1/Command | Lost 10 parts (2p3n4u1w) 40561 | -1/Command | Discovered new exit (range 8) 40581 | *** | Escaped! Last Messages --------------- 40563_ A bubble of rippling energy engulfs the area. 40563_ Field strength at 89. 40564_ Field strength at 78. 40565_ Field strength at 67. 40565_ Alpha 7 triggered Stasis Trap. 40565_ A bubble of rippling energy engulfs the area. 40565_ Field strength at 85. 40566_ Field strength at 56. 40566_ Field strength at 70. 40567_ Field strength at 45. 40567_ Field strength at 55. 40568_ Field strength at 34. 40568_ Field strength at 40. 40569_ Field strength at 23. 40569_ Field strength at 25. 40570_ Field strength at 12. 40570_ Field strength at 10. 40571_ Field strength at 1. 40571_ Stasis field depleted. 40574_ System corrupted: Heat flow error (+132). Map ----- +----------------------------------------------------+ | + + ""#??????????? | | + # ""#??????????? | | + + ""#??????????? | | ### ####"+############ # T#??????????? | | #?# #??# # # # ""#??????????? | | ##?#####??# # + # ""#??????????? | | ??????????# # # # ""###########? | | ??????????# # # + # !#? | | ??????????# # # !# # #? | | ??????????# # # [[######"## "" ## | | ??????????# + = # *! |= ===/ """" + | | ??????????# # == #+##+##+####### " "" ## | | ??????????# # # #???# "" !#? | | ??????????# ! # + #???# #? | | ??????????# # # #???# #? | | ??????????# ######### #???##########"# | | ??????????#"+####???????###########?????????????# | | ??????????#" "#??????????????????????????????????# | | ??????????#" ##????##############????????????????? | | ??????????#" #?????# #????????????????? | | ??????????#" #?????# #########????????? | | ??????????#" #?????# ^ ^ %; #%# ; ###??????? | | ??????????#" #?????# ^!^! ^ = ^######## | | ??????????#" #?????# 7 ^ !%^%= " % # | | ??????????#" #?????# "" ^ ^ %^!*^^% " # | | ?????######"+####??# @" ^ ^^^% " # | | ?????# " #??# ^!^^^ ^ " # | | ?????# ###??# ^ =% % ^### # | | ?????# "" #????# ^ %;[#*# # ###?# # | | ?????# """ #????# #########???# + | | ?????# T" #????# % #???????????# # | | ?????# """ #????##############???????????# # | | ?????# "" #???????????????????????????### # | | ?????# #???????????????????#########"# # | | ?????# #????######?????????# + # | | ?????####+!######### #?????????# " # | | ???????# !% !![!%!=[!"T #??????#### # # | | ???????# |! ! !!!=* #??????# + # # | | ???????# ##"####### #??????# ## # | | ???????# ##!= ????#" ##??????# ## # | | ???????# ## ??## #???????# ## # | | ???????+ ## ### %#???????# ## # | | ???????+ ## ##" !#???????# ##""############# | | ???????+ ## ##"% ###?????# ## #??????????? | | ???????+ ?# ## == "#######+#"""##??????????? | | ???????#^^?# ## [* # ##???????????? | | ???????# ?# ## ""% # ** #????????????? | | ???????# ?? ## ### # ** #????????????? | | ???????# ?? #######=" # #????????????? | | ???????# ?? # %%%" " = #????????????? | +----------------------------------------------------+ Best States ------------- Heat Dissipation 137 Coolant Potential 100 Energy Generation 65 Energy Capacity 1000 Matter Stores 300 Matter Capacity 300 Sight Range 22 Robot Scan Range 18 Terrain Scan Density 10 Cloak Strength 3 Base Temperature (-) 100 EM Shielding 4 Corruption Block 15 Armor Coverage 1800 Resistance: TH 15 Resistance: EM 20 Core Shielding 30 Propulsion Shielding 66 Weapon Shielding 66 Weapon Cycling 25 Phase Shifting 15 Evasion (%) 55 Targeting Accuracy 16 Target Analysis 6 Recoil Reduction 6 Particle Charging 15 Kinecelleration 40 Offensive Hacking 26 Relay Coupler Types 7 Relay Coupler Value 112 Authchip Count 2 Trap Extractor Capacity 8 Item Schematics ----------------- Imp. Heavy Treads | -6/Factory | Scanalyzed Lrn. Missile Launcher | -4/Factory | Scanalyzed Robot Schematics ------------------ None Fabricated ------------ Imp. Heavy Treads | x2 | -6/Factory Lrn. Missile Launcher | x1 | -3/Research | Authchip Imp. Heavy Treads | x2 | -3/Research | Authchip Enh. Nova Cannon | x1 | -1/Access | Preloaded Alien Tech Used ----------------- None Achievements -------------- None Challenges ------------ None Game ------ Seed RemoteBoreScrap Manual? 0 Play Time 04:30:24 Cumulative 1454.0 hours Start 2024.01.14 @ 15:17:44 End 2024.01.14 @ 23:13:15 Sessions 7 Manual Loads 0 Difficulty Rogue Special Mode None Game No. 1017 Rogue 1013 Adventurer 4 Explorer 0 Win Type 0 Total 177 Types 132/11/11/7/2/1/3/6/4 Lore% 95 Gallery% 98 Achievement% 98 Wizard Run 0 Options --------- ASCII 0 Keyboard 1 Movement Vi Keybinds 0 Fullscreen 0 Font 20/X11 Map View 76x50 Zoom Use 0% Tactical HUD 1 Map Filters NONE Filters NONE Steam 1 RUN: 0c73585d-d47f-404c-a787-0582151fe812